Cogmind - Beta 17 @@@ ROGUE MODE // 2026.07.31 @ 13:47:35 Player: Mediocre Result: Escaped singularity! Performance ------------- Evolutions (9) 4500 Regions Visited (30) 6000 Robots Destroyed (570) 2850 Value Destroyed (34820) 34820 Prototype IDs (372) 7440 Alien Tech Used (3) 600 Bonus (98926) 98926 TOTAL SCORE: 155136 Bonus ------- Triggered High Security 1000 High Alert Combat Kills 17885 Follower Combat Kills 2604 Prayed to X0-1V1 5000 Major X0-1V1 Interference 20150 Entered Garrisons 200 Network Hubs Disabled 200 Met Data Miner 300 Acquired ECA 300 Met Warlord at Base 500 MAIN.C Attacked Warlord 500 Warlord Defense Kills 2016 Built Enhanced Grunts 300 A7 Reached Mainframe 300 Met R17 at Cetus 500 Met R17 at Research 2000 Met Warlord at Research 2000 Invited to Help at Command 2000 Scanned by Researcher 500 Destroyed MAIN.C Guards 500 Met MAIN.C 5000 Destroyed MAIN.C Shell 5000 Destroyed MAIN.C 10000 Met Warlord at Command 2000 Met Architect 300 Destroyed A8 300 Destroyed Architect 15000 Win 3000 Friendly Fire -429 Cogmind --------- Core Integrity 1047/1570 Matter 140/150 Energy 1961/2429 System Corruption 0% Temperature Cool (10) Movement Treading (42) Location Near Former Tau Ceti IV Parts ------- > --- POWER (4) -------- Multi-Quantum Reactor > --- PROPULSION (7) --- Treaded HC-QT Exoskeleton > --- UTILITY (9) ------ Armored Scrap Engine Concept Phasing Heat Sink (fused) Concept Thermoelectric Network Concept Antigrav Storage Unit Concept Core Analysis Suite Improved Armor Integrity Analyzer Experimental Weapon Cycler (fused) > --- WEAPON (5) ------- Multirail (fused) Hvy. Directed Potential Construct/C > --- INVENTORY (25) --- Concept Phasing Heat Sink Experimental Coolant Injector Concept Thermoelectric Network Concept NT7 Matterbank (750) Experimental Targeting Computer Concept Core Analysis Suite Experimental Armor Integrity Analyzer Concept Phase Shift Module Concept Cloak Mesh Experimental Powered Armor Graphene Brace Experimental Force Field Advanced Remote Force Field Concept Impact Drone Bay (6/6) X0-1V1's Piety Tracker Subatomic Replicator Concept Plasma Driver Hypervelocity Multirail Gamma Bomb Array Heavy Scimitar of Distortion Peak State ------------ > --- POWER ------------ Multi-Quantum Reactor > --- PROPULSION ------- Treaded HC-QT Exoskeleton > --- UTILITY ---------- Armored Scrap Engine Concept Phasing Heat Sink Concept Thermoelectric Network Concept Antigrav Storage Unit Concept Core Analysis Suite Improved Armor Integrity Analyzer Experimental Weapon Cycler Concept Impact Drone Bay > --- WEAPON ----------- Multirail Hvy. Directed Potential Construct/C > --- INVENTORY -------- Concept Phasing Heat Sink Experimental Coolant Injector Concept Thermoelectric Network Concept NT7 Matterbank Experimental Targeting Computer Concept Core Analysis Suite Experimental Armor Integrity Analyzer Concept Phase Shift Module Concept Cloak Mesh Experimental Powered Armor Graphene Brace Experimental Force Field Advanced Remote Force Field X0-1V1's Piety Tracker Transdimensional Reconstructor Subatomic Replicator Concept Plasma Driver Hypervelocity Multirail Gamma Bomb Array Heavy Scimitar of Distortion [Rating: 271] Favorites ----------- Power Constructs Engine Ion Engine Power Core Neutrino Core Reactor Constructs Propulsion Constructs Treads Constructs Wheel High-density Centrium Wheel Hover Unit Improved Hover Unit Flight Unit Xenon Bombardment Thruster Utility Armored Scrap Engine Device Armored Scrap Engine Storage Large Storage Unit Processor Experimental Core Analyzer Hackware Concept Network Penetrator Protection Centrium Medium Armor Plating Weapon Constructs Energy Gun Medium Laser Energy Cannon Constructs Ballistic Gun Assault Rifle Ballistic Cannon Battle Cannon Launcher Improved Grenade Launcher Slashing Weapon Axe Piercing Weapon Plasma Lance Special Melee Weapon Improved Datajack Build | -11 -10 -10 -8 -8 -8 -6 -6 -6 -6 -5 -5 -5 -5 -5 -5 -5 -4 -4 -4 -4 -4 -4 -3 -3 -2 -2 -2 -1 -1 -1 ------- Run | Yrd Mat Sub Mat Sto Rec Fac Low Low Dat Pro Fac Gar Fac Upp Upp War Pro Fac Ext Cet Arc Hub Res Tes Res Qua Frg Acc Com Ac0 Slots Evolved 18 | . . . 4 . . 4 . . . . 2 . . . . . . 2 . . . . 2 . 2 . . 2 . . Power 2 | . . . . . . 1 . . . . 1 . . . . . . . . . . . . . . . . . . . Propulsion 5 | . . . 3 . . 1 . . . . . . . . . . . . . . . . 1 . . . . . . . Utility 8 | . . . . . . 2 . . . . 1 . . . . . . 1 . . . . 1 . 2 . . 1 . . Weapon 3 | . . . 1 . . . . . . . . . . . . . . 1 . . . . . . . . . 1 . . Parts Attached 139 | 4 9 4 9 17 3 2 . . . . 1 4 5 . . 1 . 3 6 1 . 1 19 3 16 2 17 3 7 2 Power 5 | . 1 . 1 2 . . . . . . . 1 . . . . . . . . . . . . . . . . . . Engine 4 | . 1 . 1 2 . . . . . . . . . . . . . . . . . . . . . . . . . . Core 1 | . . . . . . . . . . . . 1 . . . . . . . . . . . . . . . . . . Reactor . | . . . . . . . . . . . . . . . . . . . . . . . . . . . . . . . Propulsion 18 | 2 . . 5 11 . . . . . . . . . . . . . . . . . . . . . . . . . . Treads 18 | 2 . . 5 11 . . . . . . . . . . . . . . . . . . . . . . . . . . Leg . | . . . . . . . . . . . . . . . . . . . . . . . . . . . . . . . Wheel . | . . . . . . . . . . . . . . . . . . . . . . . . . . . . . . . Hover . | . . . . . . . . . . . . . . . . . . . . . . . . . . . . . . . Flight . | . . . . . . . . . . . . . . . . . . . . . . . . . . . . . . . Utility 79 | . 4 2 1 . 1 2 . . . . 1 . 5 . . . . 2 5 1 . . 13 2 11 1 17 3 6 2 Device 51 | . 1 2 . . 1 1 . . . . . . 5 . . . . 1 4 . . . 9 2 6 1 11 1 5 1 Storage 7 | . 3 . 1 . . . . . . . . . . . . . . . 1 . . . . . 1 . 1 . . . Processor 15 | . . . . . . 1 . . . . . . . . . . . 1 . . . . 3 . 4 . 4 . 1 1 Hackware 2 | . . . . . . . . . . . . . . . . . . . . . . . . . . . . 2 . . Protection 4 | . . . . . . . . . . . 1 . . . . . . . . 1 . . 1 . . . 1 . . . Artifact . | . . . . . . . . . . . . . . . . . . . . . . . . . . . . . . . Weapon 37 | 2 4 2 2 4 2 . . . . . . 3 . . . 1 . 1 1 . . 1 6 1 5 1 . . 1 . Energy Gun 3 | . 2 . . . . . . . . . . . . . . . . . . . . . 1 . . . . . . . Energy Cannon 3 | . 1 . . . . . . . . . . . . . . . . . . . . . 1 1 . . . . . . Ballistic Gun 17 | 2 1 1 2 4 . . . . . . . 2 . . . . . . . . . . 1 . 3 . . . 1 . Ballistic Cannon 3 | . . 1 . . . . . . . . . 1 . . . . . . . . . . . . 1 . . . . . Launcher 5 | . . . . . 1 . . . . . . . . . . 1 . 1 . . . . . . 1 1 . . . . Special Weapon . | . . . . . . . . . . . . . . . . . . . . . . . . . . . . . . . Impact Weapon . | . . . . . . . . . . . . . . . . . . . . . . . . . . . . . . . Slashing Weapon 4 | . . . . . 1 . . . . . . . . . . . . . . . . 1 2 . . . . . . . Piercing Weapon 1 | . . . . . . . . . . . . . . . . . . . . . . . 1 . . . . . . . Special Melee Weapon 1 | . . . . . . . . . . . . . . . . . . . 1 . . . . . . . . . . . Unidentified Prototypes 24 | . . 1 . 1 1 . . . . . . . . . . . . . . 1 . . 12 1 2 1 4 . . . Parts Lost 26 | . 1 1 2 3 . . . . . . 3 3 1 . . . . 1 . . . 1 . 2 4 . 1 2 1 . Power 4 | . . . 1 . . . . . . . 1 2 . . . . . . . . . . . . . . . . . . Propulsion 1 | . . . 1 . . . . . . . . . . . . . . . . . . . . . . . . . . . Utility 10 | . . 1 . . . . . . . . . . 1 . . . . . . . . . . 1 3 . 1 2 1 . Weapon 11 | . 1 . . 3 . . . . . . 2 1 . . . . . 1 . . . 1 . 1 1 . . . . . Highest Loss Streak 4 | . 1 1 2 2 . . . . . . 3 4 1 . . . . 1 . . . 1 . 1 2 . 1 1 1 . To Critical Strikes . | . . . . . . . . . . . . . . . . . . . . . . . . . . . . . . . Average Backups 15 | 1 9 13 15 18 11 3 3 4 4 4 7 13 14 14 14 14 14 14 14 14 15 14 14 14 16 17 21 21 22 20 Power . | . . . . 1 . . . . . . . . . . . . . . . . . . . . . . . . . . Propulsion 1 | . 3 4 1 5 3 . . . . . . . . . . . 2 1 1 1 1 1 1 1 . 1 . . . . Utility 7 | . 1 3 6 5 4 2 2 2 2 2 3 5 6 7 6 6 5 5 6 6 7 7 9 8 8 9 13 14 14 14 Weapon 4 | . 4 5 6 5 2 1 1 2 2 2 3 7 6 6 6 5 5 6 6 6 6 5 3 4 5 5 4 3 5 4 Tool/Special . | . . . . . . . . . . . . . . . . . . . . . . . . . . . . . . . Unused Backups 99 | . . 1 . 6 9 . . . . . 1 4 3 . 4 2 1 3 3 3 . . 8 2 10 2 19 . 3 15 Power 8 | . . . . 1 2 . . . . . . . . . 1 . . . . . . . 1 . 2 1 . . . . Propulsion 20 | . . . . 3 5 . . . . . . . . . . . . 2 . . . . 2 . 2 . 6 . . . Utility 36 | . . . . 1 2 . . . . . . . 1 . 1 . . . . 2 . . 3 2 3 1 9 . 1 10 Weapon 32 | . . 1 . 1 . . . . . . 1 4 2 . 1 1 1 1 3 1 . . 2 . 3 . 4 . 2 4 Tool/Special 3 | . . . . . . . . . . . . . . . 1 1 . . . . . . . . . . . . . 1 Average Slot Usage (%) 54 | . 92 97 96 99 73 51 53 53 53 53 49 47 47 47 47 46 41 46 46 42 40 47 49 46 43 42 42 42 46 47 Engine 2 | . 13 14 8 9 9 3 3 . . . . . 2 2 . . . . . . . . . . . . . . . . Reactor 2 | . . . . . . . . 3 3 6 4 4 1 . . . 5 5 3 5 5 5 1 4 4 4 4 4 4 4 Treads 7 | . 28 28 43 44 22 4 2 4 . . . . 4 5 5 3 . . . . . . . . 1 4 2 3 1 4 Leg 1 | . . . . . 1 . . . . . . 3 . . . 1 5 5 5 5 5 4 . . 2 . . . . . Device 14 | . 8 11 9 9 9 11 13 13 13 13 11 10 14 17 17 17 17 15 15 15 15 15 15 13 13 16 16 15 20 19 Storage 5 | . 13 14 9 9 4 . . . . . 4 5 5 5 5 5 5 5 5 5 5 5 4 4 4 4 4 4 4 4 Processor 4 | . . . . . . 5 6 6 6 6 5 4 . . . . . 4 5 5 5 5 4 4 7 8 7 8 8 8 Energy Gun 1 | . 7 . . . 2 . . 8 9 . . 1 . . 1 1 . . . . . . 1 2 . . . . . . Energy Cannon 2 | . 5 14 8 . . . 2 . . 6 5 1 3 5 1 . 1 . . 4 1 2 2 2 1 2 1 3 3 4 Ballistic Gun 3 | . 14 10 17 26 13 5 7 4 . . 1 2 1 . 1 3 . . . . . . . . . . . . 1 4 Ballistic Cannon 2 | . . 3 . . 1 6 2 . 3 6 3 3 6 5 5 5 3 5 5 . 4 6 3 3 2 1 2 . 1 . Slashing Weapon 1 | . . . . . 6 6 5 6 6 6 3 1 . . . . . 4 2 . . 3 3 . . . . . . . Peak Build Rating 271 | 4 9 22 27 44 48 70 81 93 102 102 109 140 144 131 131 139 133 147 146 141 141 161 184 180 212 212 247 249 270 271 Average Rating 142 | 3 7 18 25 32 41 63 72 83 97 101 101 120 131 131 130 126 131 141 138 137 140 153 170 173 185 203 224 242 261 267 On Entrance 117 | . 4 9 21 27 44 48 69 81 93 101 102 96 110 131 131 130 125 130 137 140 138 141 144 173 169 204 202 233 239 267 Avg Prop Armor Cover (%) 26 | 29 26 . . . . . . . . . . . . . . . . . . . . . . . . . . . . . Naked Turns . | . . . . . . . . . . . . . . . . . . . . . . . . . . . . . . . Heaviest Build 232 | 3 31 32 53 57 57 27 29 38 29 27 85 96 117 102 102 104 92 95 95 94 94 110 164 112 143 126 156 131 232 232 Greatest Support 465 | 3 40 40 100 118 118 61 73 113 184 184 210 244 313 313 313 313 186 186 108 108 108 108 261 296 418 348 465 402 402 234 Greatest Overweight (x) 1 | . . . . . . . . . . . . . . . . . . . . . . 1 1 . . . 1 . 1 . Average Overweight (x) . | . . . . . . . . . . . . . . . . . . . . . . . . . . . . . . . Largest Inventory Capacity 25 | 5 15 15 20 20 20 15 5 5 5 5 15 15 15 15 15 15 15 15 15 15 15 15 15 15 20 20 25 25 25 25 Average Capacity 17 | 5 12 15 17 20 12 5 5 5 5 5 13 15 15 15 15 15 15 15 15 15 15 15 15 15 19 20 23 25 25 25 Most Carried 25 | 4 12 15 19 20 20 5 4 4 4 5 11 15 15 15 15 15 15 15 15 15 15 15 15 15 20 20 25 24 25 21 Average Carried 15 | 1 9 14 16 19 11 3 3 4 4 4 8 13 14 14 14 14 14 14 14 14 15 14 14 14 17 19 23 22 23 20 Final Capacity 25 | 5 15 15 20 20 5 5 5 5 5 5 15 15 15 15 15 15 15 15 15 15 15 15 15 15 20 20 25 25 25 25 Final Carried 24 | 4 12 15 19 20 5 3 4 4 4 5 10 15 14 15 14 15 15 14 15 15 15 15 15 14 20 20 24 22 21 20 Scrap Engine Consumption 359 | . . . . . 28 21 1 . . . 10 34 10 1 8 19 8 8 15 4 2 1 23 11 74 9 49 2 21 . Constructs Created 20 | . . . . . 3 1 . . . . 1 3 . . . 1 . . . . . 2 2 1 1 . 3 1 1 . Constructs Modified 357 | . . . . . 7 10 11 8 12 1 10 25 10 1 3 5 5 5 7 1 1 5 41 9 70 4 52 7 47 . Class Distribution -------------------- 39% | Construct 28% | Generator-Construct 11% | Mutant 10% | Commander-Construct 3% | Scavenger-Gunner Dominant Class ---------------- Mutant | -10/Materials Mutant | -10/Subcaves Gunner | -8/Materials Scavenger-Gunner | -8/Storage Mutant | -8/Recycling Construct | -6/Factory Construct | -6/Lower Caves Construct | -6/Lower Caves Construct | -6/Data Miner Construct | -5/Proximity Caves Construct | -5/Factory Construct | -5/Garrison Construct | -5/Factory Construct | -5/Upper Caves Construct | -5/Upper Caves Commander-Construct | -5/Warlord Construct | -4/Proximity Caves Construct | -4/Factory Commander-Construct | -4/Extension Commander-Construct | -4/Cetus Commander-Construct | -4/Archives Commander-Construct | -4/Hub_04(d) Construct | -3/Research Construct | -3/Testing Generator-Construct | -2/Research Generator-Construct | -2/Quarantine Generator-Construct | -2/Protoforge Hacker-Construct | -1/Access Generator-Construct | -1/Command Generator-Construct | -1/Access_0 Resources | -11 -10 -10 -8 -8 -8 -6 -6 -6 -6 -5 -5 -5 -5 -5 -5 -5 -4 -4 -4 -4 -4 -4 -3 -3 -2 -2 -2 -1 -1 -1 ----------- Run | Yrd Mat Sub Mat Sto Rec Fac Low Low Dat Pro Fac Gar Fac Upp Upp War Pro Fac Ext Cet Arc Hub Res Tes Res Qua Frg Acc Com Ac0 Matter Collected 12966 | 240 255 109 198 883 862 28 358 239 . . 148 699 271 140 20 185 547 537 636 147 48 410 999 893 1286 20 2313 220 225 50 Remotely . | . . . . . . . . . . . . . . . . . . . . . . . . . . . . . . . Salvage Created 35843 | . 692 134 214 1206 248 487 183 53 . . 1017 1128 490 50 68 1073 621 697 828 517 231 728 2289 1896 3575 816 11540 1608 2781 673 Parts 1588 | . 47 12 19 61 13 24 14 5 . . 39 54 36 1 3 50 30 35 44 9 9 18 71 91 137 38 487 78 114 49 Haulers Intercepted 18 | . 2 . . 2 . 1 . . . . 1 . . . . . . . 1 . . 1 8 2 . . . . . . Recyclers Shooed 6 | . 1 . . 2 . 1 . . . . . . . . . . . . 1 . . . . . . . . 1 . . Parts Field Recycled . | . . . . . . . . . . . . . . . . . . . . . . . . . . . . . . . Retrieved Matter . | . . . . . . . . . . . . . . . . . . . . . . . . . . . . . . . Parts Self-Destructed 61 | . . 10 . . . . 17 3 . 2 . . . 1 3 . 25 . . . . . . . . . . . . . Prevented 2 | . . . . . . . . 2 . . . . . . . . . . . . . . . . . . . . . . Parts Restored 3 | . . . . . . . . . . . . . . . . . . . . . . . . . . . 3 . . . Faulty 3 | . . . . . . . . . . . . . . . . . . . . . . . . . . . 3 . . . Kills | -11 -10 -10 -8 -8 -8 -6 -6 -6 -6 -5 -5 -5 -5 -5 -5 -5 -4 -4 -4 -4 -4 -4 -3 -3 -2 -2 -2 -1 -1 -1 ------- Run | Yrd Mat Sub Mat Sto Rec Fac Low Low Dat Pro Fac Gar Fac Upp Upp War Pro Fac Ext Cet Arc Hub Res Tes Res Qua Frg Acc Com Ac0 Combat Hostiles Destroyed 468 | . 12 5 7 22 7 1 6 2 . . 17 33 10 1 1 16 13 14 12 7 3 8 20 25 50 9 127 16 19 5 Melee 1 | . . . . . . . . . . . 1 . . . . . . . . . . . . . . . . . . . Guns 65 | . 9 3 7 22 4 . 4 2 . . 3 9 1 . . . . . . . . . 1 . . . . . . . Cannons 317 | . 3 2 . . . 1 1 . . . 9 2 9 1 1 8 13 8 12 5 3 3 17 22 41 9 113 11 18 5 AOE 48 | . . . . . 3 . 1 . . . 4 19 . . . 5 . 6 . . . . . 3 5 . 1 1 . . Classes Destroyed 33 | . 9 2 2 . 1 . 1 . . . 1 2 . . . 3 . . . . . . 1 . 2 . 8 1 . . Worker 23 | . 1 . . 1 . 2 . . . . 1 . 1 . . . . . . . . 4 1 5 . . 1 5 1 . Builder 12 | . 1 . . . . 1 . . . . . . 2 . . . . 1 . . . . . 4 . . 2 1 . . Tunneler 1 | . . . . . . . . . . . . . . . . . . . . . . . . . 1 . . . . . Hauler 18 | . 2 . . 2 . 1 . . . . 1 . . . . . . . 1 . . 1 8 2 . . . . . . Recycler 6 | . 2 . . 2 . 2 . . . . . . . . . . . . . . . . . . . . . . . . Carrier 2 | . . . . . . . . . . . . . . . . . . . . . . . . . 1 . 1 . . . Mechanic 4 | . 1 . . . . . . . . . . . . . . . . . . . . . . . . . 3 . . . Operator 12 | . 1 . . 1 . 1 . . . . . . 3 . . . . . 2 . . . 1 . . . 2 . 1 . Drone 4 | . . . . . . . . . . . . . . . . . . . . . . . . . . . 4 . . . Watcher 17 | . 1 . . 1 . . . . . . 1 . . . . . . 1 . 1 . . 1 . 1 . 4 3 3 . Swarmer 72 | . 6 3 4 7 . . 5 2 . . 4 13 4 . . 1 4 5 . . . . . 2 10 . 1 1 . . Saboteur 2 | . . . . . . . . . . . . . . . . . . . . . . . . . . . 2 . . . Grunt 130 | . 6 . 1 7 . . . . . . 6 7 4 . . 6 . 3 4 2 1 . 10 5 14 5 46 . 3 . Brawler 23 | . . . 1 . . . . . . . 1 3 . . . 1 2 1 . . . 1 . . 2 . 10 . 1 . Duelist 14 | . . . . . . . . . . . . 1 . . . . . . . . . . . . 2 1 10 . . . Protector 10 | . . . . . . . . . . . . . . . . 3 . . . . . . . . . . 7 . . . Researcher 6 | . . . . . . . . . . . . . . . . . . . . . . . . . . . 6 . . . Sentry 56 | . . . 1 8 1 1 . . . . . 7 . . 1 . 1 . 6 . 2 3 4 3 2 2 10 . 4 . Demolisher 5 | . . . . . . . . . . . . . . . . 2 . . . . . . 1 . 2 . . . . . Specialist 2 | . . . . . . . . . . . . 1 . . . . . . . . . 1 . . . . . . . . Hunter 37 | . . . . . 3 . . . . . 5 1 . . . 1 4 3 . . . 3 . 6 3 . . 7 1 . Programmer 39 | . . . . . . . 1 . . . . . 2 1 . . 2 2 . . . . . 7 3 1 13 5 2 . Heavy 2 | . . . . . . . . . . . . . . . . . . . . . . . . . . . . 1 1 . Q-Series 2 | . . . . . . . . . . . . . . . . . . . . . . . . . . . . 2 . . Behemoth 2 | . . . . . . . . . . . 1 . . . . . . . . . . . . . . . . . 1 . Cetus Guard 5 | . . . . . . . . . . . . . . . . . . . . 5 . . . . . . . . . . Enhanced Grunt 2 | . . . . . . . . . . . . . . . . . . . . . . . . . . . . . . 2 Enhanced Sentry 1 | . . . . . . . . . . . . . . . . . . . . . . . . . . . . . . 1 Lightning 1 | . . . . . . . . . . . . . . . . . . . . . . . . . . . 1 . . . Hotshot 3 | . . . . . . . . . . . . . . . . . . . . . . . . . . . 3 . . . Decapitator 9 | . . . . . . . . . . . . . . . . . . . . . . . . . . . 9 . . . Immortal 1 | . . . . . . . . . . . . . . . . . . . . . . . . . . . 1 . . . Overlord 1 | . . . . . . . . . . . . . . . . . . . . . . . . . . . 1 . . . Striker 14 | . . . . . . . . . . . . . . . . . . . . . . . 4 2 7 . . . 1 . Executioner 10 | . . . . . . . . . . . . . . . . 2 . . . . . . 1 . 4 . . . 3 . Alpha 7 4 | . . . . . . . . . . . . . . . . . . . . . . . . . . . 4 . . . V-Series 5 | . . . . . . . . . . . . . . . . . . . . . . . . . . . 5 . . . Artisan 1 | . . 1 . . . . . . . . . . . . . . . . . . . . . . . . . . . . Subdweller 5 | . . 2 . . 3 . . . . . . . . . . . . . . . . . . . . . . . . . Packrat 1 | . . . . . . . 1 . . . . . . . . . . . . . . . . . . . . . . . Tinkerer 1 | . . . . . . . . . . . . . . . . . . . . . . . . . . . 1 . . . Wasp 2 | . . . . . . . . . . . . . . . . . . . 2 . . . . . . . . . . . Thug 1 | . . . . . . . . . . . . . . . . 1 . . . . . . . . . . . . . . Savage 1 | . . . . . . . . . . . . . . . . . . . . . . . . . 1 . . . . . Best Kill Streak 19 | . 5 3 4 6 3 3 4 2 . . 6 9 7 1 1 9 4 10 2 5 3 6 6 8 6 4 19 9 7 4 Combat Bots Only 18 | . 3 3 4 4 3 1 3 2 . . 5 9 2 1 1 9 4 10 2 3 3 5 4 5 6 4 18 5 5 4 Max Kills in Single Turn 7 | . 1 1 2 3 2 2 1 1 . . 3 5 1 1 1 2 2 4 2 1 1 4 1 7 3 1 3 4 2 1 Gunslinging 2 | . . . 1 2 . . . . . . . . . . . . . . . . . . . . . . . . . . Exploded 5 | . . . . . 2 . 1 . . . 3 5 . . . 2 . 4 . . . . . 3 3 . 1 1 . . Melee 1 | . . . . . . . . . . . 1 . . . . . . . . . . . . . . . . . . . Uniques/NPCs Destroyed 4 | . . . . . . . . . . . . . . . . . . . . . . . . . . . . . 2 2 MAIN.C Shell (-1/Command) MAIN.C (-1/Command) A8 (-1/Access_0) Architect (-1/Access_0) Combat | -11 -10 -10 -8 -8 -8 -6 -6 -6 -6 -5 -5 -5 -5 -5 -5 -5 -4 -4 -4 -4 -4 -4 -3 -3 -2 -2 -2 -1 -1 -1 -------- Run | Yrd Mat Sub Mat Sto Rec Fac Low Low Dat Pro Fac Gar Fac Upp Upp War Pro Fac Ext Cet Arc Hub Res Tes Res Qua Frg Acc Com Ac0 Hostile Shots Fired 2550 | . 61 23 45 83 21 31 15 4 . . 121 216 61 4 3 72 113 124 74 5 8 141 75 165 249 113 487 92 84 60 Missed 914 | . 15 4 15 26 7 16 7 . . . 46 80 20 2 2 31 36 45 29 2 4 65 19 71 80 56 163 29 26 18 Hits 1636 | . 46 19 30 57 14 15 8 4 . . 75 136 41 2 1 41 77 79 45 3 4 76 56 94 169 57 324 63 58 42 Melee 40 | . . . . . . . . . . . . 4 . . . . 3 . . . . 1 6 1 10 . 14 . 1 . Projectile 1596 | . 46 19 30 57 14 15 8 4 . . 75 132 41 2 1 41 74 79 45 3 4 75 50 93 159 57 310 63 57 42 AOE 28 | . . . . . . . . . . . . . . . . 2 . . . . . . 1 . 12 . 12 1 . . Critical Strikes 97 | . 1 . . 4 . . . . . . . 4 2 . . 2 1 6 4 . 1 2 4 8 9 2 36 2 8 1 Actively Blocked 4 | . . . . . . . . . . . . . . . . . . . . . . . . . . . 3 . 1 . Part Disruptions 2 | . . . . . . . . . . . . . . . . . . . . . . . . . . . . . 2 . Damage Taken 33847 | . 483 267 326 882 319 142 147 59 . . 1459 2724 734 39 77 1058 1546 1540 1252 41 115 1575 1773 2404 4328 544 6396 1371 1574 672 Core 2972 | . 117 29 30 53 12 5 16 . . . 141 299 93 18 . 123 122 103 62 . 23 130 142 184 316 40 582 53 141 138 Absorbed by Shields 5895 | . . . . . . . . . . . . 96 . . . 25 . . 11 39 . . . . 684 575 2672 311 792 690 Ignored by Resistances 790 | . . . . . . . . . . . . . . . . . . . . . . . . 48 601 . 141 . . . Regen/Repaired (Parts) 21114 | . . . . . 21 93 230 28 45 . 617 789 685 21 65 499 628 1326 1244 126 15 630 1165 770 3804 259 4752 1232 2070 . Core Remaining (%) 72 | 100 . 70 . . 87 . . . . 97 . . . . . . 17 . . . . 71 . 74 . . 71 . . 66 Volleys Fired 1429 | . 70 38 37 65 13 7 11 2 . 1 47 72 36 3 2 28 42 38 43 13 6 15 115 77 162 35 320 38 67 26 Largest 3 | . 2 2 3 3 3 2 2 2 . 1 2 3 3 1 1 1 1 1 1 1 1 2 2 2 2 1 1 1 2 1 Hottest 584 | . 80 80 100 100 73 121 121 72 . 29 66 251 251 130 130 130 195 218 238 238 238 310 218 153 319 267 420 152 584 165 Shots Fired 1798 | . 133 52 73 196 29 14 21 4 . 1 82 111 41 3 2 28 42 38 43 13 6 17 123 78 165 35 315 38 69 26 Gun 522 | . 124 14 61 195 25 7 12 4 . . 13 54 3 . . . . . . . . . 6 . 1 . . . 3 . Cannon 1216 | . 9 38 12 1 . 7 8 . . 1 65 37 38 3 2 21 42 32 43 13 6 17 117 78 157 35 315 27 66 26 Launcher 60 | . . . . . 4 . 1 . . . 4 20 . . . 7 . 6 . . . . . . 7 . . 11 . . Special . | . . . . . . . . . . . . . . . . . . . . . . . . . . . . . . . Kinetic 1217 | . 72 38 61 195 25 . 9 . . . 23 58 40 3 2 21 35 32 43 . 6 10 109 36 128 13 169 27 62 . Thermal 417 | . 61 14 12 1 . 14 11 2 . 1 55 5 1 . . . 7 . . . . . 3 42 25 22 108 . 7 26 Explosive 30 | . . . . . 4 . 1 . . . 4 20 . . . . . 1 . . . . . . . . . . . . Electromagnetic 133 | . . . . . . . . 2 . . . 28 . . . 7 . 5 . 13 . 7 10 . 12 . 38 11 . . Entropic 1 | . . . . . . . . . . . . . . . . . . . . . . . 1 . . . . . . . Robot Hit Streak 66 | . 15 14 8 11 28 16 6 4 . . 15 25 5 3 5 9 5 5 9 6 5 4 24 8 17 12 66 26 32 3 Robot Miss Streak 6 | . 3 2 4 5 1 1 2 1 . . 6 3 3 . . 2 3 2 5 2 1 3 3 3 4 3 6 5 2 3 Penetration Max 3 | . . . . . . . . . . . 2 1 1 . . . 1 . 1 . . 1 1 1 1 . 2 3 2 . Secondary Targets 9 | . . . 2 7 . . . . . . . . . . . . . . . . . . . . . . . . . . Max Gunslinging Chain 2 | . . . 1 2 . . . . . . . . . . . . . . . . . . . . . . . . . . Shots Hit Robots 1211 | . 76 22 32 129 25 19 14 2 . . 59 70 27 2 2 23 23 21 36 8 5 8 84 49 123 15 253 20 49 15 Core Hits 732 | . 32 8 14 47 12 12 10 3 . . 60 64 14 1 1 50 10 17 20 6 3 11 32 37 77 8 128 29 18 8 Critical Kills 20 | . . . . . . . . . . . . . . . . . . 3 2 . . . 6 . . . 4 3 2 . Critical Parts Destroyed 32 | . . . . 1 . . . . . . . 1 1 . . 1 . 1 . . . . 11 . 1 . 1 7 7 . Critical Strikes 87 | . 3 . . 1 . 1 . . . . 2 7 2 . . 1 . 4 4 . . . 25 8 1 . 6 11 11 . Burn 3 | . 3 . . . . . . . . . . . . . . . . . . . . . . . . . . . . . Meltdown 1 | . . . . . . . . . . . . . . . . . . . . . . . . . . . 1 . . . Destroy 56 | . . . . 1 . . . . . . . 1 1 . . 1 . 4 2 . . . 19 . 1 . 4 11 11 . Blast 16 | . . . . . . . . . . . . 2 1 . . . . . . . . . 5 7 . . 1 . . . Corrupt 4 | . . . . . . . . . . . . 4 . . . . . . . . . . . . . . . . . . Sever 5 | . . . . . . 1 . . . . 2 . . . . . . . 2 . . . . . . . . . . . Impale 1 | . . . . . . . . . . . . . . . . . . . . . . . . 1 . . . . . . Detonate 1 | . . . . . . . . . . . . . . . . . . . . . . . 1 . . . . . . . Melee Attacks 75 | . . . . . 4 16 1 . . 1 14 7 . . . . . 6 11 . . 2 2 10 1 . . . . . Impact . | . . . . . . . . . . . . . . . . . . . . . . . . . . . . . . . Slashing 61 | . . . . . 4 16 1 . . 1 14 7 . . . . . 6 8 . . 2 2 . . . . . . . Piercing 11 | . . . . . . . . . . . . . . . . . . . . . . . . 10 1 . . . . . Sneak Attacks 12 | . . . . . . 5 1 . . . . . . . . . . . 5 . . . . . 1 . . . . . Combat Hostiles . | . . . . . . . . . . . . . . . . . . . . . . . . . . . . . . . Follow-up Attacks . | . . . . . . . . . . . . . . . . . . . . . . . . . . . . . . . Damage Inflicted 123557 | . 985 317 499 2042 735 754 538 76 . . 2899 4981 2210 190 152 4027 2947 2754 3407 1011 519 2224 6239 6509 13408 2295 36677 7595 12971 4596 Guns 6471 | . 851 107 392 2025 389 131 270 76 . . 343 1541 30 . . . . . . . . . 278 . 28 . . . 10 . Cannons 103746 | . 105 210 107 . . 147 95 . . . 1864 721 2141 190 152 1368 2947 1499 3037 1011 519 1293 5927 4934 12205 2295 36677 6745 12961 4596 Explosions 11572 | . . . . . 346 . 110 . . . 493 2648 . . . 2659 . 1255 133 . . 931 34 1029 1097 . . 837 . . Melee 1550 | . . . . . . 476 63 . . . 199 . . . . . . . 188 . . . . 546 78 . . . . . Ramming 169 | . 29 . . 17 . . . . . . . 71 39 . . . . . . . . . . . . . . 13 . . Kinetic 75784 | . 394 107 392 2025 389 . 251 . . . 1051 1193 2148 190 152 1368 2580 1499 3037 . 519 961 5389 2447 8542 496 20871 6745 12971 67 Thermal 28703 | . 562 210 107 . . 278 114 48 . . 1156 47 23 . . 1023 367 293 . . . . 79 2487 3529 1799 12052 . . 4529 Explosive 5282 | . . . . . 346 . 110 . . . 493 2648 . . . . . 523 133 . . . . 1029 . . . . . . Electromagnetic 11939 | . . . . . . . . 28 . . . 1022 . . . 1636 . 439 . 1011 . 1263 690 . 1259 . 3754 837 . . Impact . | . . . . . . . . . . . . . . . . . . . . . . . . . . . . . . . Slashing 975 | . . . . . . 476 63 . . . 199 . . . . . . . 237 . . . . . . . . . . . Piercing 624 | . . . . . . . . . . . . . . . . . . . . . . . . 546 78 . . . . . Entropic 81 | . . . . . . . . . . . . . . . . . . . . . . . 81 . . . . . . . Highest Corruption 31 | . . . . . . . 1 1 1 1 . 5 5 3 4 4 1 1 1 . . 1 2 4 7 7 31 . 4 . Average Corruption 4 | . . . . . . . 1 1 1 1 . 3 4 3 3 2 1 1 1 . . 1 2 2 4 4 10 . 2 . Corruption Purged 9 | . . . . . . . . . . . . . 5 . . . . . . . . . . . . . . . 4 . Corruption Blocked . | . . . . . . . . . . . . . . . . . . . . . . . . . . . . . . . Effects 179 | . . . . . . . . 1 1 1 . . 13 4 6 1 7 1 8 . . . 2 10 48 2 69 . 5 . Message Errors 43 | . . . . . . . . 1 . . . . 2 . 2 . 1 . 3 . . . . 2 12 1 18 . 1 . Matter Fused 39 | . . . . . . . . . 1 . . . 4 1 1 1 1 . 1 . . . 1 . 15 1 11 . 1 . Heat Flow Errors 26 | . . . . . . . . . . 1 . . 2 . 2 . 1 . . . . . . 3 7 . 10 . . . Energy Discharges 24 | . . . . . . . . . . . . . . 1 . . 3 1 2 . . . 1 2 8 . 5 . 1 . Parts Rejected 4 | . . . . . . . . . . . . . 1 . . . . . . . . . . . 1 . 2 . . . Parts Fused 2 | . . . . . . . . . . . . . 1 . . . . . . . . . . . . . 1 . . . Data Loss (minor) 20 | . . . . . . . . . . . . . 3 1 1 . 1 . 2 . . . . 3 2 . 7 . . . Data Loss (major) 7 | . . . . . . . . . . . . . . 1 . . . . . . . . . . 3 . 3 . . . Alerts 3 | . . . . . . . . . . . . . . . . . . . . . . . . . . . 2 . 1 . Misdirections 5 | . . . . . . . . . . . . . . . . . . . . . . . . . . . 5 . . . Weapon Failures 6 | . . . . . . . . . . . . . . . . . . . . . . . . . . . 5 . 1 . Overload Shots . | . . . . . . . . . . . . . . . . . . . . . . . . . . . . . . . Overflow Damage 14384 | . . . . . 9 88 46 . . . 5 15 357 55 . 62 454 256 255 8 . 79 531 547 1120 193 4375 2663 2573 693 Projectiles 13927 | . . . . . . . . . . . 4 . 357 55 . 62 454 118 221 8 . 51 531 547 1024 193 4375 2661 2573 693 Explosions 250 | . . . . . 9 . . . . . . 15 . . . . . 138 . . . 28 . . 58 . . 2 . . Melee 207 | . . . . . . 88 46 . . . 1 . . . . . . . 34 . . . . . 38 . . . . . Knockbacks 200 | . . . . . . . 2 . . . . . 11 1 . 9 3 5 10 . 3 1 18 6 39 1 60 7 23 1 Impact . | . . . . . . . . . . . . . . . . . . . . . . . . . . . . . . . Kinetic 180 | . . . . . . . 2 . . . . . 10 1 . 8 3 5 10 . 2 1 17 5 37 1 51 6 20 1 Secondary 20 | . . . . . . . . . . . . . 1 . . 1 . . . . 1 . 1 1 2 . 9 1 3 . Self-Inflicted Damage 491 | . . . . . 54 . 34 . . . 22 50 . . . 21 . 48 . . . 98 . 91 23 . . 50 . . Shots 21 | . . . . . 1 . 1 . . . 1 2 . . . 1 . 4 . . . 1 . 1 3 . . 6 . . Rammed 13 | . 3 . . 5 . . . . . . . . 4 . . . . . . . . . . . . . . 1 . . Targets Rammed 19 | . 4 . . 5 . . . . . . . 4 4 . . . . . 1 . . . . . . . . 1 . . Kicked 5 | . . . . . . . . . . . . 4 . . . . . . 1 . . . . . . . . . . . Crushed 1 | . 1 . . . . . . . . . . . . . . . . . . . . . . . . . . . . . Highest Temperature 563 | . 45 . 63 89 . 137 250 29 . 116 306 342 349 40 118 33 475 211 395 284 . 183 368 38 563 . 334 187 223 167 Average Temperature 91 | . 12 . 20 22 . 50 120 15 . 53 78 110 116 21 46 10 116 74 124 125 . 59 147 38 144 . 109 57 99 105 Received Heat Transfer 4018 | . 198 48 108 324 . 51 . . . . 75 758 132 . . 177 18 135 102 . 39 198 234 196 286 44 826 21 37 11 Thermoelectric Energy+ 13373 | . . . . . . . . . . . . . . . . . . . . . . . . . . . 6212 72 6831 258 Effects 14 | . . . . . . . 1 . . . . . . . . . 3 . 5 . . . . . 2 . 3 . . . Shutdowns 1 | . . . . . . . . . . . . . . . . . 1 . . . . . . . . . . . . . Energy Bleed 6 | . . . . . . . 1 . . . . . . . . . 1 . 1 . . . . . . . 3 . . . Interference 5 | . . . . . . . . . . . . . . . . . . . 3 . . . . . 2 . . . . . Matter Decay 1 | . . . . . . . . . . . . . . . . . . . 1 . . . . . . . . . . . Short Circuit 1 | . . . . . . . . . . . . . . . . . 1 . . . . . . . . . . . . . Siege Activations . | . . . . . . . . . . . . . . . . . . . . . . . . . . . . . . . Martial Activations . | . . . . . . . . . . . . . . . . . . . . . . . . . . . . . . . Shielding Activations . | . . . . . . . . . . . . . . . . . . . . . . . . . . . . . . . Robots Disrupted 4 | . . . . . . . . . . . 1 . . . . . . . . . . . . . 3 . . . . . Combat Hostiles 4 | . . . . . . . . . . . 1 . . . . . . . . . . . . . 3 . . . . . Robots Corrupted 38 | . . . . . . . . . . . . 3 . . . 3 . . . 2 . 5 2 . 3 . 15 4 1 . Combat Hostiles 34 | . . . . . . . . . . . . 3 . . . 3 . . . 2 . 4 2 . 3 . 12 4 1 . Parts Fried 120 | . . . . . . . . . . . . 7 . . . 9 . . . 14 . 6 5 . 8 . 62 8 1 . Impact Corruptions 11 | . . . . . . . . . . . . . . . . . . . . . . 1 . . . . 6 2 2 . Robots Melted 1 | . . . . . . . . . . . . . . . . . . . . . . . . . . . 1 . . . Combat Hostiles 1 | . . . . . . . . . . . . . . . . . . . . . . . . . . . 1 . . . Parts Melted 17 | . 1 1 . . 1 . . . . . 5 . 1 . . 1 . . . . . . . 2 1 . 3 . 1 . Heat Transferred 13045 | . 1813 444 222 . . 629 248 200 . . 962 . . . . 975 111 250 . . . . 87 814 898 444 4528 . . 420 Parts Sabotaged 2 | . . . . . . . . . . . . 2 . . . . . . . . . . . . . . . . . . Parts Stolen . | . . . . . . . . . . . . . . . . . . . . . . . . . . . . . . . Parts Stripped . | . . . . . . . . . . . . . . . . . . . . . . . . . . . . . . . Power Chain Reactions 12 | . . . . . . . . . . . . . . . . 5 . 1 . . . . 1 . 4 . . 1 . . Alert | -11 -10 -10 -8 -8 -8 -6 -6 -6 -6 -5 -5 -5 -5 -5 -5 -5 -4 -4 -4 -4 -4 -4 -3 -3 -2 -2 -2 -1 -1 -1 ------- Run | Yrd Mat Sub Mat Sto Rec Fac Low Low Dat Pro Fac Gar Fac Upp Upp War Pro Fac Ext Cet Arc Hub Res Tes Res Qua Frg Acc Com Ac0 Maximum Alert Level 5 | . . . . 1 . . . . . . 1 4 3 . . . . 2 3 2 3 4 3 4 4 4 5 5 5 . Low Security (%) 26 | 100 100 . 100 45 100 100 . . . . 63 4 . . . . . 51 56 . . . . . . . . . . . Level 1 7 | . . . . 54 . . . . . . 36 22 . . . . . 47 17 9 22 36 . . . . . . . . Level 2 20 | . . . . . . . . . . . . 4 . . . . . 1 20 90 19 14 95 37 48 . . . . . Level 3 14 | . . . . . . . . . . . . 33 100 . . . . . 4 . 58 48 4 61 26 49 5 . . . Level 4 7 | . . . . . . . . . . . . 34 . . . . . . . . . . . 1 24 50 9 . . . Level 5 21 | . . . . . . . . . . . . . . . . . . . . . . . . . . . 85 88 84 . High Security 1 | . . . . . . . . . . . . . . . . . . . . . . . . . . . . 11 15 . Max Security . | . . . . . . . . . . . . . . . . . . . . . . . . . . . . . . . Peak Influence 4446 | . 106 . 120 361 121 45 . . . . 261 1560 936 . . . . 406 721 676 795 1147 796 1144 1571 1572 4446 2968 2193 . Initial 2655 | . . . 16 46 121 34 . . . . . 156 819 . . . . 32 147 394 250 274 601 443 643 883 878 2655 1899 . Average 968 | . 33 . 38 193 29 16 . . . . 157 856 854 . . . . 186 273 540 629 602 614 742 860 1176 3070 2561 1979 . Influence Increases 19680 | . 456 70 243 637 167 126 145 65 . . 498 1474 379 30 20 490 290 553 1298 482 575 1103 737 1457 1698 839 4436 753 615 44 Destroy 0b10 Robot/C 10200 | . 240 60 140 440 80 20 120 40 . . 340 680 200 20 20 380 260 280 600 220 160 280 400 680 1020 180 2660 320 360 . Destroy 0b10 Robot/NC 615 | . 45 . . 35 . 35 5 . . . 15 . 30 . . 15 . 10 40 10 . 35 55 70 10 . 140 45 20 . Destroy Leader 1416 | . 56 10 30 116 . 12 20 10 . . 64 30 30 10 . . 30 32 54 10 . 56 108 106 182 20 270 76 84 . Allied During Kill 1600 | . . . . . . . . . . . . 12 . . . 65 . . 404 204 160 197 25 97 . . 436 . . . Successful Hack 284 | . 8 . 9 14 . 38 . . . . 3 . 24 . . . . . . . . 15 38 32 . 38 . 65 . . Select Force Hacks 60 | . 60 . . . . . . . . . . . . . . . . . . . . . . . . . . . . . Disable Machine 1065 | . 15 . . 30 45 . . . . . . . 30 . . . . 75 75 15 45 165 15 135 15 90 210 60 45 . Anti-Garrison Action 550 | . . . . . . . . . . . . 250 . . . . . . . . . 150 . . . . 150 . . . Destroy Structure 1723 | . 2 . 4 2 42 6 . . . . 76 262 20 . . . . 156 110 8 30 190 96 108 201 42 121 142 61 44 Partial Spotted 60 | . . . . . . 15 . . . . . . . . . . . . . . . . . 15 . 30 . . . . Lose Combat Pursuer 1245 | . 30 . 60 . . . . 15 . . . 240 45 . . 30 . . 15 15 . 15 . . 270 135 285 45 45 . Miscellaneous 862 | . . . . . . . . . . . . . . . . . . . . . 180 . . 214 . 304 164 . . . Influence Decreases 19636 | . 456 38 163 438 396 189 128 66 35 . 274 138 1037 485 226 363 606 303 895 561 416 741 1096 1101 1271 848 1572 2211 1189 2394 Entered New Map 11581 | . . . 16 66 190 48 8 8 35 . . 68 741 335 86 241 368 20 155 311 376 511 546 345 501 688 684 1771 1069 2394 Time Decay 6427 | . 448 38 127 342 206 141 120 58 . . 244 . 286 150 140 52 238 273 530 170 40 80 530 286 710 160 678 270 110 . Lost Part 248 | . 8 . 20 30 . . . . . . 30 30 10 . . . . 10 . . . 10 . 20 40 . 10 20 10 . Lost Ally 630 | . . . . . . . . . . . . 40 . . . 70 . . 60 80 . 140 20 . 20 . 200 . . . Purge Threat 750 | . . . . . . . . . . . . . . . . . . . 150 . . . . 450 . . . 150 . . Squads Dispatched 110 | . 3 . 2 2 . 1 . . . . 5 . 3 . . . . 2 2 1 1 6 8 12 2 10 31 10 9 . Investigation 12 | . 2 . 1 . . . . . . . 1 . 1 . . . . . 1 1 1 1 2 . . 1 . . . . Extermination 17 | . . . . . . . . . . . . . 1 . . . . 1 . . . . . 3 1 2 6 2 1 . Reinforcement 35 | . 1 . 1 1 . 1 . . . . 4 . 1 . . . . 1 1 . . 2 6 4 1 4 3 4 . . Assault 36 | . . . . . . . . . . . . . . . . . . . . . . 2 . 2 . 1 22 1 8 . Garrison 10 | . . . . 1 . . . . . . . . . . . . . . . . . 1 . 3 . 2 . 3 . . Intercept . | . . . . . . . . . . . . . . . . . . . . . . . . . . . . . . . Searches Triggered . | . . . . . . . . . . . . . . . . . . . . . . . . . . . . . . . Construction Impeded 3 | . . . . . . . . . . . 1 . . . . . . . 1 . . . . 1 . . . . . . Haulers Reinforced 8 | . . . . . . 1 . . . . 2 . . . . . . . . . . . 3 1 . . . 1 . . Active Scanning Responses . | . . . . . . . . . . . . . . . . . . . . . . . . . . . . . . . Cargo Convoy Interrupts . | . . . . . . . . . . . . . . . . . . . . . . . . . . . . . . . Stealth | -11 -10 -10 -8 -8 -8 -6 -6 -6 -6 -5 -5 -5 -5 -5 -5 -5 -4 -4 -4 -4 -4 -4 -3 -3 -2 -2 -2 -1 -1 -1 --------- Run | Yrd Mat Sub Mat Sto Rec Fac Low Low Dat Pro Fac Gar Fac Upp Upp War Pro Fac Ext Cet Arc Hub Res Tes Res Qua Frg Acc Com Ac0 Distress Signals 66 | . 1 . . 3 1 . . . . . 2 . . . . . . . 4 3 1 3 6 . 20 2 5 . 15 . Communications Jammed 2 | . . . . . . . . . . . . . . . . . . . 2 . . . . . . . . . . . Distress Signals 2 | . . . . . . . . . . . . . . . . . . . 2 . . . . . . . . . . . Times Spotted 776 | . 22 5 15 26 7 7 7 3 . . 29 66 17 1 . 54 17 14 34 6 3 27 26 39 89 33 176 22 23 8 Peak Tracking Total 18 | . 4 3 6 4 3 4 2 3 . . 10 18 4 1 1 18 4 7 6 5 3 10 4 6 10 8 18 6 8 4 Tactical Retreats 37 | . 2 . 3 . . . . 1 . . . 4 3 . . 1 . . 1 1 . 1 . . 9 2 5 1 3 . Traps | -11 -10 -10 -8 -8 -8 -6 -6 -6 -6 -5 -5 -5 -5 -5 -5 -5 -4 -4 -4 -4 -4 -4 -3 -3 -2 -2 -2 -1 -1 -1 ------- Run | Yrd Mat Sub Mat Sto Rec Fac Low Low Dat Pro Fac Gar Fac Upp Upp War Pro Fac Ext Cet Arc Hub Res Tes Res Qua Frg Acc Com Ac0 Traps Triggered 27 | . . . 1 6 . . . . . . 1 . . . . . . . 1 . . 1 . 1 . 4 12 . . . Indirectly 1 | . . . . . . . . . . . . . . . . . . . . . . 1 . . . . . . . . Trap Hack Attempts . | . . . . . . . . . . . . . . . . . . . . . . . . . . . . . . . Triggered . | . . . . . . . . . . . . . . . . . . . . . . . . . . . . . . . Disarmed . | . . . . . . . . . . . . . . . . . . . . . . . . . . . . . . . Reprogrammed . | . . . . . . . . . . . . . . . . . . . . . . . . . . . . . . . Reused . | . . . . . . . . . . . . . . . . . . . . . . . . . . . . . . . Traps Extracted . | . . . . . . . . . . . . . . . . . . . . . . . . . . . . . . . Installed . | . . . . . . . . . . . . . . . . . . . . . . . . . . . . . . . Triggered . | . . . . . . . . . . . . . . . . . . . . . . . . . . . . . . . Machines | -11 -10 -10 -8 -8 -8 -6 -6 -6 -6 -5 -5 -5 -5 -5 -5 -5 -4 -4 -4 -4 -4 -4 -3 -3 -2 -2 -2 -1 -1 -1 ---------- Run | Yrd Mat Sub Mat Sto Rec Fac Low Low Dat Pro Fac Gar Fac Upp Upp War Pro Fac Ext Cet Arc Hub Res Tes Res Qua Frg Acc Com Ac0 Machines Disabled 84 | . 1 . . 2 3 . . . . 1 . 3 2 . . . . 5 8 1 3 12 1 9 1 6 19 4 3 . Max in Single Turn 7 | . 1 . . 1 1 . . . . 1 . 1 1 . . . . 4 1 1 . 7 1 1 1 1 2 1 1 . Garrison Access 5 | . . . . . . . . . . . 1 . . . . . . . . . . 1 . 1 1 . 1 . . . Garrison Relay 3 | . . . . . . . . . . . . 3 . . . . . . . . . . . . . . . . . . Network Hub 1 | . . . . . . . . . . . . . . . . . . . . . . 1 . . . . . . . . Machines Repaired . | . . . . . . . . . . . . . . . . . . . . . . . . . . . . . . . Machines Dismantled . | . . . . . . . . . . . . . . . . . . . . . . . . . . . . . . . Machines Sabotaged . | . . . . . . . . . . . . . . . . . . . . . . . . . . . . . . . Overloaded Fab Kills 1 | . . . . . . . . . . . . . . . . . . . . . . . 1 . . . . . . . Hacking | -11 -10 -10 -8 -8 -8 -6 -6 -6 -6 -5 -5 -5 -5 -5 -5 -5 -4 -4 -4 -4 -4 -4 -3 -3 -2 -2 -2 -1 -1 -1 --------- Run | Yrd Mat Sub Mat Sto Rec Fac Low Low Dat Pro Fac Gar Fac Upp Upp War Pro Fac Ext Cet Arc Hub Res Tes Res Qua Frg Acc Com Ac0 Machines Accessed 63 | . 8 . 2 2 1 4 . . 3 . 3 3 3 . 1 2 . 1 2 1 . 2 5 6 . 4 6 3 1 . Terminals 47 | . 6 . 2 2 . 3 . . . . 1 3 2 . . . . 1 2 1 . 2 4 5 . 4 5 3 1 . Fabricators . | . . . . . . . . . . . . . . . . . . . . . . . . . . . . . . . Repair Stations . | . . . . . . . . . . . . . . . . . . . . . . . . . . . . . . . Recycling Units 2 | . 2 . . . . . . . . . . . . . . . . . . . . . . . . . . . . . Scanalyzers . | . . . . . . . . . . . . . . . . . . . . . . . . . . . . . . . Garrison Access 7 | . . . . . . 1 . . . . 2 . 1 . . . . . . . . . 1 1 . . 1 . . . Total Hacks 172 | . 16 . 7 5 2 9 . . 21 . 7 6 6 . 1 6 . 1 5 2 . 6 11 22 . 13 11 14 1 . Successful 83 | . 9 . 3 2 2 4 . . 21 . 3 2 1 . 1 6 . . 3 . . 3 3 9 . 3 1 7 . . Failed 89 | . 7 . 4 3 . 5 . . . . 4 4 5 . . . . 1 2 2 . 3 8 13 . 10 10 7 1 . Catastrophic 22 | . . . 2 1 . 2 . . . . . . 2 . . . . . 1 . . . 2 2 . 2 7 . 1 . Database Lockouts . | . . . . . . . . . . . . . . . . . . . . . . . . . . . . . . . Manual 86 | . 17 . 7 1 . 3 . . . . 1 2 1 . . 1 . 1 4 1 . 6 3 12 . 7 9 8 2 . Terminals 123 | . 12 . 7 5 . 7 . . . . 2 6 4 . . . . 1 5 2 . 6 8 21 . 13 9 14 1 . Fabricators . | . . . . . . . . . . . . . . . . . . . . . . . . . . . . . . . Repair Stations . | . . . . . . . . . . . . . . . . . . . . . . . . . . . . . . . Recycling Units 4 | . 4 . . . . . . . . . . . . . . . . . . . . . . . . . . . . . Scanalyzers . | . . . . . . . . . . . . . . . . . . . . . . . . . . . . . . . Garrison Access 15 | . . . . . . 2 . . . . 5 . 2 . . . . . . . . . 3 1 . . 2 . . . Terminal Hacks 53 | . . . 1 2 2 2 . . 21 . . 1 . . 1 6 . . 2 . . 1 1 6 . 1 1 5 . . Record 6 | . . . . . . . . . 6 . . . . . . . . . . . . . . . . . . . . . Part Schematic 9 | . . . . . . . . . 9 . . . . . . . . . . . . . . . . . . . . . Robot Schematic 3 | . . . . . . . . . 3 . . . . . . . . . . . . . . . . . . . . . Prototype ID Bank 10 | . . . . . . 1 . . 3 . . . . . . 5 . . . . . . . 1 . . . . . . Open Door 4 | . . . . 2 . . . . . . . . . . 1 1 . . . . . . . . . . . . . . Level Access Points 1 | . . . . . . . . . . . . . . . . . . . . . . . . . . . . 1 . . Branch Access Points 2 | . . . 1 . . . . . . . . . . . . . . . . . . . . . . . . 1 . . Emergency Access Points 1 | . . . . . . . . . . . . 1 . . . . . . . . . . . . . . . . . . Alert Level 6 | . . . . . . . . . . . . . . . . . . . 1 . . . 1 2 . 1 . 1 . . Unreport Threat 5 | . . . . . . . . . . . . . . . . . . . 1 . . . . 3 . . . 1 . . Zone Layout 3 | . . . . . . 1 . . . . . . . . . . . . . . . 1 . . . . . 1 . . Proto ID Catalog 1 | . . . . . . . . . . . . . . . . . . . . . . . . . . . 1 . . . Release Object 2 | . . . . . 2 . . . . . . . . . . . . . . . . . . . . . . . . . Fabricator Hacks . | . . . . . . . . . . . . . . . . . . . . . . . . . . . . . . . Repair Station Hacks . | . . . . . . . . . . . . . . . . . . . . . . . . . . . . . . . Recycling Unit Hacks . | . . . . . . . . . . . . . . . . . . . . . . . . . . . . . . . Scanalyzer . | . . . . . . . . . . . . . . . . . . . . . . . . . . . . . . . Garrison Access Hacks 3 | . . . . . . . . . . . 2 . . . . . . . . . . . . 1 . . . . . . Unlock Access 1 | . . . . . . . . . . . 1 . . . . . . . . . . . . . . . . . . . Seal Access 2 | . . . . . . . . . . . 1 . . . . . . . . . . . . 1 . . . . . . Unauthorized Hacks 27 | . 9 . 2 . . 2 . . . . 1 1 1 . . . . . 1 . . 2 2 2 . 2 . 2 . . Terminals 25 | . 7 . 2 . . 2 . . . . 1 1 1 . . . . . 1 . . 2 2 2 . 2 . 2 . . Botnet 19 | . 2 . 2 . . 2 . . . . 1 . 1 . . . . . 1 . . 2 2 2 . 2 . 2 . . Skim 5 | . 5 . . . . . . . . . . . . . . . . . . . . . . . . . . . . . Override 1 | . . . . . . . . . . . . 1 . . . . . . . . . . . . . . . . . . Fabricators . | . . . . . . . . . . . . . . . . . . . . . . . . . . . . . . . Repair Stations . | . . . . . . . . . . . . . . . . . . . . . . . . . . . . . . . Recycling Units 2 | . 2 . . . . . . . . . . . . . . . . . . . . . . . . . . . . . Tunnel 2 | . 2 . . . . . . . . . . . . . . . . . . . . . . . . . . . . . Scanalyzers . | . . . . . . . . . . . . . . . . . . . . . . . . . . . . . . . Garrison Access . | . . . . . . . . . . . . . . . . . . . . . . . . . . . . . . . Data Cores Recovered 6 | . . . . . . 1 . . . . . . 2 . . . . . 1 . . . . . . . 1 . 1 . Used 1 | . . . . . . 1 . . . . . . . . . . . . . . . . . . . . . . . . Hacking Detections 40 | . 3 . 2 1 . 4 . . . . 2 1 3 . . . . 1 1 1 . 1 5 3 . 4 5 2 1 . Full Trace Events 6 | . . . . 1 . . . . . . . 1 1 . . . . . . . . 1 1 . . 1 . . . . Feedback Events . | . . . . . . . . . . . . . . . . . . . . . . . . . . . . . . . Feedback Blocked . | . . . . . . . . . . . . . . . . . . . . . . . . . . . . . . . Robot Schematics Acquired 5 | . . . . . . . . . 3 . . . . . . . . . . . . . . . . . 2 . . . Robots Built . | . . . . . . . . . . . . . . . . . . . . . . . . . . . . . . . Authchips . | . . . . . . . . . . . . . . . . . . . . . . . . . . . . . . . Time . | . . . . . . . . . . . . . . . . . . . . . . . . . . . . . . . Total Robot Build Rating . | . . . . . . . . . . . . . . . . . . . . . . . . . . . . . . . Part Schematics Acquired 18 | . . . . . . . . . 9 . . . . . . . . . . . . . . 2 . . 7 . . . Parts Built . | . . . . . . . . . . . . . . . . . . . . . . . . . . . . . . . Authchips . | . . . . . . . . . . . . . . . . . . . . . . . . . . . . . . . Time . | . . . . . . . . . . . . . . . . . . . . . . . . . . . . . . . Total Part Build Rating . | . . . . . . . . . . . . . . . . . . . . . . . . . . . . . . . Part Studies Acquired . | . . . . . . . . . . . . . . . . . . . . . . . . . . . . . . . Parts Repaired . | . . . . . . . . . . . . . . . . . . . . . . . . . . . . . . . Time . | . . . . . . . . . . . . . . . . . . . . . . . . . . . . . . . Parts Recycled . | . . . . . . . . . . . . . . . . . . . . . . . . . . . . . . . Recycled Matter . | . . . . . . . . . . . . . . . . . . . . . . . . . . . . . . . Retrieved Matter . | . . . . . . . . . . . . . . . . . . . . . . . . . . . . . . . Retrieved Components . | . . . . . . . . . . . . . . . . . . . . . . . . . . . . . . . Parts Scanalyzed . | . . . . . . . . . . . . . . . . . . . . . . . . . . . . . . . Part Schematics Acquired . | . . . . . . . . . . . . . . . . . . . . . . . . . . . . . . . Parts Damaged . | . . . . . . . . . . . . . . . . . . . . . . . . . . . . . . . Bothacking | -11 -10 -10 -8 -8 -8 -6 -6 -6 -6 -5 -5 -5 -5 -5 -5 -5 -4 -4 -4 -4 -4 -4 -3 -3 -2 -2 -2 -1 -1 -1 ------------ Run | Yrd Mat Sub Mat Sto Rec Fac Low Low Dat Pro Fac Gar Fac Upp Upp War Pro Fac Ext Cet Arc Hub Res Tes Res Qua Frg Acc Com Ac0 Used RIF Installer . | . . . . . . . . . . . . . . . . . . . . . . . . . . . . . . . Robots Hacked . | . . . . . . . . . . . . . . . . . . . . . . . . . . . . . . . Non-combat . | . . . . . . . . . . . . . . . . . . . . . . . . . . . . . . . Combat . | . . . . . . . . . . . . . . . . . . . . . . . . . . . . . . . Robot Hacks Applied . | . . . . . . . . . . . . . . . . . . . . . . . . . . . . . . . Relay Couplers Released 14 | . . . . . . . . . . . . 10 . . . . . . . . . 2 . . . . 2 . . . Machine Destruction 14 | . . . . . . . . . . . . 10 . . . . . . . . . 2 . . . . 2 . . . Fabnet Peak Effective % . | . . . . . . . . . . . . . . . . . . . . . . . . . . . . . . . Robots Rewired 16 | . . . . . . . . . . . . . . . . 5 . . 11 . . . . . . . . . . . Allies Hacked 1 | . . . . . . . . . . . . . . . . . . . . . . . . . . . 1 . . . Hacks Repelled . | . . . . . . . . . . . . . . . . . . . . . . . . . . . . . . . Allies | -11 -10 -10 -8 -8 -8 -6 -6 -6 -6 -5 -5 -5 -5 -5 -5 -5 -4 -4 -4 -4 -4 -4 -3 -3 -2 -2 -2 -1 -1 -1 -------- Run | Yrd Mat Sub Mat Sto Rec Fac Low Low Dat Pro Fac Gar Fac Upp Upp War Pro Fac Ext Cet Arc Hub Res Tes Res Qua Frg Acc Com Ac0 Total Allies 44 | . . . . . . . . . . . . 2 . . . 5 . . 17 5 . . 1 4 1 . 6 . 3 . Largest Group 11 | . . . . . . . . . . . . 2 . . . 5 . . 11 11 11 9 1 4 1 . 4 . 3 . Highest-Rated Group 862 | . . . . . . . . . . . . 84 . . . 270 . . 628 862 862 671 99 356 119 . 232 . 150 . Highest-Rated Ally 159 | . . . . . . . . . . . . 46 . . . 68 . . 159 159 159 96 99 89 119 . 110 . 50 . Initial Warlord ECA Mod 3 | . . . . . . . . . . . . . 3 3 3 3 2 2 2 2 2 2 1 1 . . . . . . Total Orders 39 | . . . . . . . . . . . . . . . . 11 . . 11 7 . . . . . . 8 . . 2 STAY 14 | . . . . . . . . . . . . . . . . 5 . . 8 1 . . . . . . . . . . ROAM 5 | . . . . . . . . . . . . . . . . . . . . 5 . . . . . . . . . . FOLLOW 9 | . . . . . . . . . . . . . . . . 5 . . 3 1 . . . . . . . . . . GUARD 1 | . . . . . . . . . . . . . . . . 1 . . . . . . . . . . . . . . EXPLORE 1 | . . . . . . . . . . . . . . . . . . . . . . . . . . . . . . 1 RETURN 9 | . . . . . . . . . . . . . . . . . . . . . . . . . . . 8 . . 1 Ally Attacks 453 | . . . . . . . . . . . . 5 . . . 32 . . 154 30 36 64 11 34 2 . 85 . . . Total Damage 17186 | . . . . . . . . . . . . 176 . . . 1390 . . 3289 890 1237 2805 376 2529 . . 4494 . . . Kills 82 | . . . . . . . . . . . . 1 . . . 8 . . 26 6 5 10 . 13 . . 13 . . . Allies Corrupted . | . . . . . . . . . . . . . . . . . . . . . . . . . . . . . . . Allies Melted 3 | . . . . . . . . . . . . . . . . . . . . . . . . . 2 . . 1 . . X0-1V1 Amusement Gains 464 | . 17 10 5 25 . . . . . . . 5 10 . . 40 . 10 . . . 30 22 65 40 10 93 30 52 . Good Acts 191 | . . 3 2 10 5 2 4 3 . 1 2 7 . . . . . 1 5 . 8 12 22 7 29 4 39 5 17 3 Bad Acts 129 | . . 1 1 4 2 . . . . . 8 5 7 2 4 5 9 3 9 4 4 13 7 2 9 6 15 . 7 2 Intel | -11 -10 -10 -8 -8 -8 -6 -6 -6 -6 -5 -5 -5 -5 -5 -5 -5 -4 -4 -4 -4 -4 -4 -3 -3 -2 -2 -2 -1 -1 -1 ------- Run | Yrd Mat Sub Mat Sto Rec Fac Low Low Dat Pro Fac Gar Fac Upp Upp War Pro Fac Ext Cet Arc Hub Res Tes Res Qua Frg Acc Com Ac0 Active Infowar (turns) 12399 | . . . . . . 368 246 174 126 92 557 913 . . . . . 655 1366 359 86 166 1480 631 3198 336 1283 . 363 . Optics 12034 | . . . . . . 368 246 174 126 92 557 913 . . . . . 655 1366 359 86 166 1480 631 3198 336 1281 . . . Cloaking 363 | . . . . . . . . . . . . . . . . . . . . . . . . . . . . . 363 . Jamming 17 | . . . . . . . . . . . . . . . . . . . 17 . . . . . . . . . . . ECM 2 | . . . . . . . . . . . . . . . . . . . . . . . . . . . 2 . . . Robot Analysis Total . | . . . . . . . . . . . . . . . . . . . . . . . . . . . . . . . Derelict Logs Recovered 6 | . . 1 . . . . 1 2 . . . . . . 1 . 1 . . . . . . . . . . . . . Drone Launches 14 | . . . . . . . . . . . . . . . . . . . . . . . . . . . 13 . . 1 Drone Recoveries 9 | . . . . . . . . . . . . . . . . . . . . . . . . . . . 8 . . 1 Exploration | -11 -10 -10 -8 -8 -8 -6 -6 -6 -6 -5 -5 -5 -5 -5 -5 -5 -4 -4 -4 -4 -4 -4 -3 -3 -2 -2 -2 -1 -1 -1 ------------- Run | Yrd Mat Sub Mat Sto Rec Fac Low Low Dat Pro Fac Gar Fac Upp Upp War Pro Fac Ext Cet Arc Hub Res Tes Res Qua Frg Acc Com Ac0 Turns Passed 23780 | 28 1551 803 421 819 911 407 246 174 126 92 557 987 626 309 290 1322 713 688 1485 359 86 166 1480 631 3198 336 2664 669 1546 90 Spaces Moved 18122 | 36 700 432 187 354 643 488 339 237 81 119 507 764 421 251 225 744 379 349 733 169 47 91 1558 716 2460 577 2493 490 1446 86 Core 153 | 36 117 . . . . . . . . . . . . . . . . . . . . . . . . . . . . . Treads 8949 | . 583 432 187 354 243 279 148 175 . . 15 15 340 251 225 552 . . . . . . 413 . 910 577 2074 386 704 86 Legs 4433 | . . . . . 184 45 . . . . . 636 81 . . 192 379 349 733 169 47 70 25 48 1189 . 286 . . . Wheels . | . . . . . . . . . . . . . . . . . . . . . . . . . . . . . . . Hover 2879 | . . . . . . . 61 16 . . 193 20 . . . . . . . . . . 1020 668 361 . 133 . 407 . Flight 1708 | . . . . . 216 164 130 46 81 119 299 93 . . . . . . . . . 21 100 . . . . 104 335 . Fastest Speed 38 | 50 50 160 160 145 59 59 45 45 48 73 73 67 116 116 116 116 155 155 155 155 155 79 49 51 38 38 38 74 42 42 Average Speed 94 | 50 141 160 160 155 111 59 56 70 48 73 73 85 116 116 116 154 155 155 155 155 155 138 72 52 92 38 56 116 79 42 Slowest Speed 242 | 50 160 160 160 160 145 59 59 76 73 73 73 116 116 116 116 155 155 155 155 155 155 242 166 58 146 38 165 157 150 42 Overloaded Moves . | . . . . . . . . . . . . . . . . . . . . . . . . . . . . . . . Propulsion Burnouts . | . . . . . . . . . . . . . . . . . . . . . . . . . . . . . . . Robots Hopped 9 | . . . . . . . . . . . 1 . . . . . . . . . . 1 . . . . . 5 2 . Potential Cave-ins 4 | . . . 2 . . . . . . . . . . . . . . . . . . . . . . . . . 2 . Cave-ins Triggered 1 | . . . . . . . . . . . . . . . . . . . . . . . . . 1 . . . . . Teleports 3 | . . . . . . . . . . . . . . . . . . . . . . . . . . . 1 . 1 1 Exploration Rate (%) 50 | 3 91 32 22 72 88 20 58 49 76 31 17 83 13 52 43 87 62 8 85 74 77 34 50 82 48 67 59 16 47 11 Regions Visited 30 Branch Regions 20 Pre-discovered Areas 5 | . 2 . . . . . 1 . 1 . . . . 1 . . . . . . . . . . . . . . . . Known Exits Taken 15 | . . . 1 . 1 . . 1 . 1 1 . . . 1 . . 1 1 . . 1 1 1 1 . 1 1 1 . Unknown Exits Taken 14 | 1 1 1 . 1 . 1 1 . 1 . . . 1 1 . 1 1 . . 1 1 . . . . 1 . . . . Scrap Searched 14 | . . . . . . . 3 1 . . . . . 2 4 . 4 . . . . . . . . . . . . . Spaces Dug 90 | . . . 3 . 1 6 . . . . 12 4 1 2 . . . 12 . . . 3 11 3 2 5 5 14 6 . Terrain Destroyed 924 | . . . 6 . 53 6 15 . . 1 41 148 15 2 . 17 31 84 48 3 3 129 52 43 116 14 34 31 22 10 Melee 30 | . . . . . 1 6 . . . . 8 4 . . . . . 5 . . . 2 2 2 . . . . . . Projectile 434 | . . . 6 . . . 2 . . 1 17 8 15 2 . 1 31 37 47 3 3 6 47 25 74 14 34 29 22 10 AOE 459 | . . . . . 52 . 13 . . . 15 136 . . . 16 . 42 1 . . 121 3 16 42 . . 2 . . Terrain Rammed . | . . . . . . . . . . . . . . . . . . . . . . . . . . . . . . . Walls Destroyed . | . . . . . . . . . . . . . . . . . . . . . . . . . . . . . . . Machines Disabled . | . . . . . . . . . . . . . . . . . . . . . . . . . . . . . . . Actions | -11 -10 -10 -8 -8 -8 -6 -6 -6 -6 -5 -5 -5 -5 -5 -5 -5 -4 -4 -4 -4 -4 -4 -3 -3 -2 -2 -2 -1 -1 -1 --------- Run | Yrd Mat Sub Mat Sto Rec Fac Low Low Dat Pro Fac Gar Fac Upp Upp War Pro Fac Ext Cet Arc Hub Res Tes Res Qua Frg Acc Com Ac0 Total 22850 | 43 1127 490 248 500 819 568 370 239 167 121 602 982 506 264 253 885 448 439 1010 254 53 108 1783 872 3210 655 3394 539 1784 117 Wait 2399 | . 329 9 5 23 124 51 15 1 87 . 21 103 28 10 20 59 24 25 70 62 1 . 36 51 509 33 456 4 241 2 Move 18075 | 35 699 431 186 353 642 487 338 236 80 118 505 763 420 250 224 743 378 348 732 168 46 88 1557 715 2459 576 2492 480 1441 85 Hop 8 | . . . . . . . . . . . 1 . . . . . . . . . . 1 . . . . . 4 2 . Pick Up 170 | 4 11 4 8 10 2 . 1 . . 1 7 11 5 1 3 3 2 6 6 4 . . 12 5 25 3 29 . 7 . Fast Attach 75 | 4 3 1 2 6 1 . . . . . . 2 5 . . . . . 2 . . . 17 3 10 2 14 2 1 . Attach 51 | . 3 . 4 3 1 3 . . . . 2 4 1 . . . . 5 1 . . 1 5 1 7 . 4 3 3 . Detach 43 | . 2 . . . 1 1 . . . . 1 5 . . . 2 . 2 2 . . 1 9 . 7 . 6 3 1 . Swap 107 | . 3 5 5 14 4 . 4 . . . 3 4 1 . . 1 1 1 5 2 . . 3 1 9 1 18 4 14 4 Drop 190 | . 3 2 1 21 27 3 . . . . 1 7 6 . 4 2 1 3 5 5 . . 27 9 21 5 31 . 6 . Fire 1429 | . 70 38 37 65 13 7 11 2 . 1 47 72 36 3 2 28 42 38 43 13 6 15 115 77 162 35 320 38 67 26 Melee 75 | . . . . . 4 16 1 . . 1 14 7 . . . . . 6 11 . . 2 2 10 1 . . . . . Ram . | . . . . . . . . . . . . . . . . . . . . . . . . . . . . . . . Kick 5 | . . . . . . . . . . . . 4 . . . . . . 1 . . . . . . . . . . . Crush 14 | . 4 . . 5 . . . . . . . . 4 . . . . . . . . . . . . . . 1 . . Escape Stasis 29 | . . . . . . . . . . . . . . . . . . 5 . . . . . . . . 24 . . . Rewire 180 | . . . . . . . . . . . . . . . . 47 . . 132 . . . . . . . . . 1 . Trap . | . . . . . . . . . . . . . . . . . . . . . . . . . . . . . . . Miscellaneous . | . . . . . . . . . . . . . . . . . . . . . . . . . . . . . . . Route ------- -11/Scrapyard -10/Materials (discovered 5 exits: [*Mat x3] / [*Min] / [*Sub]) -10/Subcaves -8/Materials (discovered 2 exits: *Sto x2) -8/Storage (discovered 2 exits: [*Fac] / *Rec) -8/Recycling -6/Factory (discovered 2 exits: Fac / [*Low]) -6/Lower Caves -6/Lower Caves (discovered 2 exits: *Fac / *Dat) -6/Data Miner -5/Proximity Caves -5/Factory (discovered 2 exits: *Fac / Gar) -5/Garrison (discovered 3 exits: *Fac x3) -5/Factory -5/Upper Caves -5/Upper Caves -5/Warlord -4/Proximity Caves -4/Factory (discovered 2 exits: *Res / *Ext) -4/Extension (discovered 2 exits: *Res / *Cet) -4/Cetus (discovered 2 exits: *Res / [*Arc]) -4/Archives (discovered 2 exits: *Res / *Hub) -4/Hub_04(d) (discovered 2 exits: *Res x2) -3/Research (discovered 3 exits: *Res x2 / *Tes) -3/Testing -2/Research (discovered 5 exits: *Acc x3 / *Qua x2) -2/Quarantine (discovered 3 exits: *Acc / [*Sec] / *Frg) -2/Protoforge -1/Access (discovered 2 exits: Sur / *Com) -1/Command (discovered 3 exits: *Sur x2 / *Ac0) -1/Access_0 Near Former Tau Ceti IV History --------- Turn | Location | Event 4 | -11/Scrapyard | Discovered new exit (range 15) 29 | -11/Scrapyard | Entered Materials 317 | -10/Materials | Build established: Mutant 532 | -10/Materials | Discovered new exit (range 16) 910 | -10/Materials | Discovered new exit (range 6) 1064 | -10/Materials | Discovered new exit (range 16) 1194 | -10/Materials | Discovered new exit (range 13) 1222 | -10/Materials | Loaded intel: 9 trap records 1273 | -10/Materials | Learned location of 2 exits from Mines 1315 | -10/Materials | Learned Storage emergency access door positions 1371 | -10/Materials | Learned location of 1 exit from Recycling 1450 | -10/Materials | Learned 2 Mines zone layouts 1565 | -10/Materials | Discovered new exit (range 7) 1578 | -10/Materials | Prayed at D.C.S.S. Altar Unit 1580 | -10/Materials | Entered Subcaves 1581 | -10/Subcaves | Approached by a straggling Scientist 1596 | -10/Subcaves | Learned Materials emergency access door positions 1632 | -10/Subcaves | Shifting Twisted Machinery released Sub. Monowheel 1829 | -10/Subcaves | Shifting Twisted Machinery released Sub. Machine Gun 1829 | -10/Subcaves | Shifting Twisted Machinery released Battle Rifle 1952 | -10/Subcaves | Shifting Twisted Machinery released Battle Cannon 2074 | -10/Subcaves | X0-1V1 activates XOMVISION 2212 | -10/Subcaves | Core integrity permanently improved by X0-1V1 (+250) 2373 | -10/Subcaves | Discovered new exit (range 3) 2383 | -10/Subcaves | Entered Materials 2383 | -8/Materials | Evolved 4 slots: Propulsion x3, Weapon x1 2580 | -8/Materials | X0-1V1 announced a LAN party 2698 | -8/Materials | Identified exit to Storage 2769 | -8/Materials | Ranged accuracy permanently improved by X0-1V1 (+6%; -60 max core) 2804 | -8/Materials | Entered Storage 2953 | -8/Storage | Build established: Scavenger-Gunner 3042 | -8/Storage | Mass support permanently improved by X0-1V1 (+8; -220 max core) 3150 | -8/Storage | Garrison activated, responded to threat 3273 | -8/Storage | Discovered new exit (range 12) 3442 | -8/Storage | X0-1V1 sent you into danger 3517 | -8/Storage | X0-1V1 foreshadows a heat wave 3598 | -8/Storage | Discovered new exit (range 10) 3617 | -8/Storage | X0-1V1 activates XOMVISION 3618 | -8/Storage | Used back door to open Recycling access 3623 | -8/Storage | Entered Recycling 3624 | -8/Recycling | Joined Warlord attack on 0b10 via Recycling 3624 | -8/Recycling | Identified exit to Factory 4034 | -8/Recycling | Entered Scraplab 4056 | -8/Recycling | Found Prototype Device 4056 | -8/Recycling | Identified Scrap Engine 4476 | -8/Recycling | X0-1V1 sent hostile H-55 Commando (x3) 4534 | -8/Recycling | Entered Factory 4534 | -6/Factory | Evolved 4 slots: Power x1, Propulsion x1, Utility x2 4596 | -6/Factory | Build established: Construct 4643 | -6/Factory | X0-1V1 released a cloud of subatomizers 4837 | -6/Factory | Discovered new exit (range 6) 4930 | -6/Factory | Identified exit to Factory 4930 | -6/Factory | X0-1V1 revealed exit location to -5/Factory 4941 | -6/Factory | Entered Lower Caves 5180 | -6/Lower Caves | Discovered new exit (range 18) 5187 | -6/Lower Caves | Entered another Lower Caves area 5187 | -6/Lower Caves | Discovered exit to Factory (range 23) 5206 | -6/Lower Caves | Identified exit to Data Miner 5361 | -6/Lower Caves | Entered Data Miner 5361 | -6/Data Miner | Discovered new exit (range 6) 5366 | -6/Data Miner | Met Data Miner 5379 | -6/Data Miner | Learned location of Section 7 (-2) 5379 | -6/Data Miner | Acquired the access code to Warlord's prototype stash 5386 | -6/Data Miner | Received God Mode back door access code from Data Miner 5487 | -6/Data Miner | Entered Proximity Caves 5513 | -5/Proximity Caves | Found Alien Artifact 5565 | -5/Proximity Caves | Discovered exit to Factory (range 20) 5579 | -5/Proximity Caves | Entered Factory 5579 | -5/Factory | Evolved 2 slots: Power x1, Utility x1 5610 | -5/Factory | Spotted B-75 Beast 5635 | -5/Factory | Destroyed B-75 Beast 5637 | -5/Factory | X0-1V1 redirected Transport squads to designated parking area 5718 | -5/Factory | X0-1V1 activates XOMVISION 5982 | -5/Factory | Discovered new exit (range 10) 6101 | -5/Factory | X0-1V1 enhanced Transport squad support 6136 | -5/Factory | Identified exit to Garrison 6136 | -5/Factory | Entered Garrison 6194 | -5/Garrison | Lost 4 parts (2p2w) 6362 | -5/Garrison | Garrison Relay disabled 6405 | -5/Garrison | Triggered checkpoint 6407 | -5/Garrison | Triggered checkpoint 6430 | -5/Garrison | Destroyed 9 combat bots 6599 | -5/Garrison | Garrison Relay disabled 6613 | -5/Garrison | Discovered new exit (range 19) 6792 | -5/Garrison | Discovered new exit (range 14) 6800 | -5/Garrison | Rescued a captive Derelict 6802 | -5/Garrison | Rescued a captive Derelict 6896 | -5/Garrison | Identified exit to Factory 6904 | -5/Garrison | Garrison Relay disabled 7042 | -5/Garrison | X0-1V1 sent you into danger 7109 | -5/Garrison | X0-1V1 sent hostile P-70 Sage (x3) 7123 | -5/Garrison | Entered Factory 7246 | -5/Factory | X0-1V1 announced a LAN party 7346 | -5/Factory | Core integrity fell below 50% 7591 | -5/Factory | X0-1V1 upgraded hostiles (x1) 7722 | -5/Factory | Discovered new exit (range 7) 7749 | -5/Factory | Entered Upper Caves 7755 | -5/Upper Caves | Met a Warlord Commander 7756 | -5/Upper Caves | Learned location of Warlord (-5) 7757 | -5/Upper Caves | Warlord Commander delivered Encrypted Comm Array 7763 | -5/Upper Caves | Found Encrypted Comm Array 7770 | -5/Upper Caves | Encountered a Warlord checkpoint 8047 | -5/Upper Caves | Discovered new exit (range 10) 8058 | -5/Upper Caves | Entered another Upper Caves area 8076 | -5/Upper Caves | X0-1V1 vaporized surrounding terrain (radius 24) 8268 | -5/Upper Caves | Identified exit to Warlord 8271 | -5/Upper Caves | Found DCF Scrap (13 items) 8348 | -5/Upper Caves | Entered Warlord 8393 | -5/Warlord | System corruption cleaned by Quarantine Array 8976 | -5/Warlord | Build established: Commander-Construct 9045 | -5/Warlord | Met Warlord 9070 | -5/Warlord | Warlord's base attacked by MAIN.C 9105 | -5/Warlord | Opened Warlord's prototype stash 9202 | -5/Warlord | Found Prototype Energy Gun 9420 | -5/Warlord | Warlord forces counterattacked 9464 | -5/Warlord | Spotted Executioner 9465 | -5/Warlord | Allies destroyed Executioner 9465 | -5/Warlord | X0-1V1 vaporized surrounding terrain (radius 24) 9502 | -5/Warlord | Spotted Executioner 9509 | -5/Warlord | Destroyed Executioner 9515 | -5/Warlord | Spotted Striker 9571 | -5/Warlord | Spotted Executioner 9571 | -5/Warlord | Spotted Executioner 9581 | -5/Warlord | Destroyed Executioner 9612 | -5/Warlord | Destroyed 9 combat bots 9617 | -5/Warlord | Lost 22 allies 9633 | -5/Warlord | Discovered new exit (range 8) 9670 | -5/Warlord | Entered Proximity Caves 9812 | -4/Proximity Caves | Build established: Construct 9980 | -4/Proximity Caves | X0-1V1 sent you into danger 9982 | -4/Proximity Caves | Attracted the attention of an 0b10 checkpoint 10045 | -4/Proximity Caves | Learned 12 Research zone layouts 10263 | -4/Proximity Caves | X0-1V1 upgraded hostiles (x2) 10267 | -4/Proximity Caves | Core integrity fell below 20% 10331 | -4/Proximity Caves | Discovered new exit (range 9) 10383 | -4/Proximity Caves | Entered Factory 10383 | -4/Factory | Evolved 2 slots: Utility x1, Weapon x1 10384 | -4/Factory | Identified exit to Extension 10698 | -4/Factory | X0-1V1 sent hostile H-77 Assassin (x3) 10716 | -4/Factory | Discovered new exit (range 13) 10775 | -4/Factory | Destroyed 10 combat bots 11071 | -4/Factory | Entered Extension 11117 | -4/Extension | Rescued a captive Derelict 11118 | -4/Extension | Rescued a captive Derelict 11171 | -4/Extension | X0-1V1 sent you into danger 11192 | -4/Extension | X0-1V1 tapped a No Entrance sign 11202 | -4/Extension | X0-1V1 sent hostile Wasp (x3) 11350 | -4/Extension | Rescued a captive Derelict 11351 | -4/Extension | Rescued a captive Derelict 11394 | -4/Extension | X0-1V1 announced a LAN party 11790 | -4/Extension | Identified exit to Cetus 11790 | -4/Extension | X0-1V1 revealed exit location to -4/Cetus 11834 | -4/Extension | Spotted B-86 Titan 11836 | -4/Extension | Build established: Commander-Construct 11873 | -4/Extension | Allies destroyed B-86 Titan 11902 | -4/Extension | Lost 4 allies 11930 | -4/Extension | Spotted B-86 Titan 11941 | -4/Extension | Allies destroyed B-86 Titan 12307 | -4/Extension | Rescued A7 12455 | -4/Extension | Rescued a captive Derelict 12507 | -4/Extension | Discovered new exit (range 10) 12556 | -4/Extension | Entered Cetus 12556 | -4/Cetus | Accompanied by 11 allies (A7) 12561 | -4/Cetus | Acquired a Cetus Manufacturing Module code from A7 12600 | -4/Cetus | Spotted Cetus Guard 12602 | -4/Cetus | Destroyed Cetus Guard 12604 | -4/Cetus | Spotted Cetus Guard 12607 | -4/Cetus | Destroyed Cetus Guard 12632 | -4/Cetus | Lost 5 allies 12709 | -4/Cetus | Started Cetus Manufacturing Module 12727 | -4/Cetus | Escorted A7 to Cetus Mainframe 12734 | -4/Cetus | Manufactured an Enhanced Grunt 12738 | -4/Cetus | Discovered new exit (range 22) 12759 | -4/Cetus | Manufactured an Enhanced Grunt 12779 | -4/Cetus | Spotted Cetus Guard 12780 | -4/Cetus | Spotted Cetus Guard 12784 | -4/Cetus | Manufactured an Enhanced Grunt 12790 | -4/Cetus | Allies destroyed Cetus Guard 12790 | -4/Cetus | Spotted Cetus Guard 12791 | -4/Cetus | Destroyed Cetus Guard 12793 | -4/Cetus | Destroyed Cetus Guard 12793 | -4/Cetus | Spotted Cetus Guard 12794 | -4/Cetus | Destroyed Cetus Guard 12802 | -4/Cetus | Discovered new exit (range 21) 12809 | -4/Cetus | Manufactured an Enhanced Grunt 12819 | -4/Cetus | Met Revision 17 12834 | -4/Cetus | Manufactured an Enhanced Grunt 12915 | -4/Cetus | Entered Archives 12915 | -4/Archives | Accompanied by 11 allies (A7) 12920 | -4/Archives | Received a hacking code to weaken MAIN.C 12923 | -4/Archives | Weapon slot count temporarily expanded by X0-1V1 (+1) 12933 | -4/Archives | X0-1V1 upgraded hostiles (x2) 12951 | -4/Archives | X0-1V1 added 0b10 threat records associated with you (considerable) 12957 | -4/Archives | X0-1V1 activates XOMVISION 12960 | -4/Archives | Discovered new exit (range 19) 12966 | -4/Archives | Discovered new exit (range 14) 12974 | -4/Archives | X0-1V1 rewrote MS-3DJ(g) IFF filter 13001 | -4/Archives | Entered Hub_04(d) 13001 | -4/Hub_04(d) | Accompanied by 9 allies 13032 | -4/Hub_04(d) | Identified exit to Research 13032 | -4/Hub_04(d) | X0-1V1 revealed exit location to -3/Research 13043 | -4/Hub_04(d) | X0-1V1 enhanced Transport squad support 13054 | -4/Hub_04(d) | X0-1V1 downgraded hostiles (x4) 13057 | -4/Hub_04(d) | Garrison activated, responded to threat 13085 | -4/Hub_04(d) | X0-1V1 sent you to a vault 13103 | -4/Hub_04(d) | Lost 3 allies 13113 | -4/Hub_04(d) | X0-1V1 vaporized surrounding terrain (radius 21) 13113 | -4/Hub_04(d) | Discovered exit to Research (range 24) 13131 | -4/Hub_04(d) | X0-1V1 sent you into danger 13165 | -4/Hub_04(d) | Network Hub disabled 13167 | -4/Hub_04(d) | Entered Research 13167 | -3/Research | Evolved 2 slots: Propulsion x1, Utility x1 13167 | -3/Research | Identified Vortex Shotgun 13168 | -3/Research | Identified exit to Research 13168 | -3/Research | Identified exit to Testing 13255 | -3/Research | X0-1V1 revealed exit location to -2/Research 13321 | -3/Research | X0-1V1 activates XOMVISION 13367 | -3/Research | Revision forces began assault on 0b10 13404 | -3/Research | Build established: Construct 13441 | -3/Research | X0-1V1 sent allied Striker (x1) 13487 | -3/Research | Spotted B-86 Titan 13616 | -3/Research | Met up with Revision 17++ 13867 | -3/Research | Research terminal network offline 14090 | -3/Research | X0-1V1 mutated your Utility slot to Weapon slot 14201 | -3/Research | X0-1V1 sent you to a vault 14221 | -3/Research | Found Gamma Bomb Array 14226 | -3/Research | Found Prototype Device 14226 | -3/Research | Identified Exp. Shock Absorption System 14230 | -3/Research | Found Prototype Device 14230 | -3/Research | Identified Femtoactuators 14233 | -3/Research | Found Prototype Device 14233 | -3/Research | Identified Exp. Actuator Array 14237 | -3/Research | Found Prototype Device 14237 | -3/Research | Identified Exp. Thermal Shield 14348 | -3/Research | X0-1V1 activates XOMVISION 14466 | -3/Research | Spotted Striker 14469 | -3/Research | Spotted Striker 14473 | -3/Research | Destroyed Striker 14484 | -3/Research | Destroyed Striker 14489 | -3/Research | Spotted Executioner 14490 | -3/Research | Spotted Striker 14503 | -3/Research | Destroyed Striker 14505 | -3/Research | Destroyed Executioner 14513 | -3/Research | Found Prototype Processor 14513 | -3/Research | Identified Exp. Targeting Computer 14516 | -3/Research | Found Prototype Processor 14516 | -3/Research | Identified Exp. Core Analyzer 14525 | -3/Research | Found Exp. Core Analyzer 14527 | -3/Research | Found Prototype Device 14527 | -3/Research | Identified Adv. Kinecellerator 14559 | -3/Research | Spotted Striker 14564 | -3/Research | X0-1V1 mutated your Weapon slot to Propulsion slot 14573 | -3/Research | X0-1V1 upgraded hostiles (x1) 14575 | -3/Research | Destroyed Striker 14647 | -3/Research | Entered Testing 14678 | -3/Testing | Found Prototype Energy Cannon 14678 | -3/Testing | Identified Null Cannon 14708 | -3/Testing | Garrison activated, responded to threat 14754 | -3/Testing | Discovered exit to Research (range 20) 14991 | -3/Testing | Found Prototype Energy Cannon 15036 | -3/Testing | X0-1V1 activates XOMVISION 15062 | -3/Testing | Found Prototype Ballistic Gun 15088 | -3/Testing | X0-1V1 added 0b10 threat records associated with you (considerable) 15147 | -3/Testing | First assault squad dispatched 15148 | -3/Testing | Spotted Striker 15149 | -3/Testing | Spotted Striker 15166 | -3/Testing | Destroyed Striker 15170 | -3/Testing | Destroyed Striker 15180 | -3/Testing | X0-1V1 sent hostile Thug (x3) 15212 | -3/Testing | X0-1V1 sent you to a vault 15278 | -3/Testing | Entered Research 15278 | -2/Research | Warlord forces began assault on 0b10 15278 | -2/Research | Evolved 2 slots: Utility x2 15382 | -2/Research | Met up with Warlord 15388 | -2/Research | Research machine network offline 15624 | -2/Research | Borebot progress halted 15945 | -2/Research | Spotted Striker 15951 | -2/Research | Spotted Executioner 15952 | -2/Research | Spotted Striker 15953 | -2/Research | Lost 3 allies 15969 | -2/Research | Destroyed Striker 16038 | -2/Research | Weapon slot count temporarily expanded by X0-1V1 (+2) 16044 | -2/Research | Crushed by falling debris 16079 | -2/Research | Found Exp. Targeting Computer 16116 | -2/Research | Borebot progress halted 16284 | -2/Research | Found Corrupted Exp. Targeting Computer 16296 | -2/Research | Found Exp. Core Analyzer 16301 | -2/Research | Found Exp. Targeting Computer 16351 | -2/Research | Borebot progress halted 16362 | -2/Research | Warlord invited to help at Command 16362 | -2/Research | Given Cave Seal Controls access code 16378 | -2/Research | Found Exp. Targeting Computer 16386 | -2/Research | Found Exp. Core Analyzer 16392 | -2/Research | Spotted Striker 16405 | -2/Research | Build established: Scavenger-Construct 16412 | -2/Research | Spotted Striker 16456 | -2/Research | X0-1V1 activates XOMVISION 16637 | -2/Research | X0-1V1 mutated your Weapon slot to Power slot 16746 | -2/Research | Spotted Striker 16773 | -2/Research | Spotted Striker 16862 | -2/Research | Discovered new exit (range 14) 16868 | -2/Research | Discovered new exit (range 23) 16924 | -2/Research | Spotted Executioner 16927 | -2/Research | Build established: Generator-Construct 16927 | -2/Research | Spotted Striker 16929 | -2/Research | X0-1V1 turns hostiles against one another 16953 | -2/Research | Destroyed Striker 17036 | -2/Research | Identified exit to Access 17036 | -2/Research | X0-1V1 revealed exit location to -1/Access 17047 | -2/Research | Spotted Striker 17098 | -2/Research | Destroyed Striker 17109 | -2/Research | X0-1V1 activates XOMVISION 17114 | -2/Research | Spotted Striker 17117 | -2/Research | Destroyed Striker 17329 | -2/Research | X0-1V1 revealed exit location to -1/Access 17373 | -2/Research | Spotted Striker 17416 | -2/Research | Spotted Striker 17444 | -2/Research | Spotted Striker 17456 | -2/Research | X0-1V1 mutated your Propulsion slot to Utility slot 17589 | -2/Research | Identified exit to Quarantine 17589 | -2/Research | X0-1V1 revealed exit location to -2/Quarantine 17685 | -2/Research | Spotted Executioner 17688 | -2/Research | Spotted Striker 17691 | -2/Research | Destroyed Executioner 17704 | -2/Research | Destroyed Striker 17747 | -2/Research | X0-1V1 mutated your Utility slot to Weapon slot 17848 | -2/Research | Spotted Executioner 17851 | -2/Research | Destroyed Executioner 17854 | -2/Research | Spotted Striker 17866 | -2/Research | Destroyed Striker 17915 | -2/Research | X0-1V1 announced a LAN party 18110 | -2/Research | Spotted Executioner 18110 | -2/Research | Spotted Executioner 18137 | -2/Research | Destroyed Executioner 18181 | -2/Research | Spotted Striker 18203 | -2/Research | Destroyed Striker 18323 | -2/Research | Spotted Executioner 18328 | -2/Research | X0-1V1 sent you to a vault 18451 | -2/Research | Spotted Executioner 18456 | -2/Research | Destroyed Executioner 18457 | -2/Research | Spotted Executioner 18476 | -2/Research | Entered Quarantine 18596 | -2/Quarantine | X0-1V1 enhanced Transport squad support 18625 | -2/Quarantine | Garrison activated, responded to threat 18663 | -2/Quarantine | Found Alien Artifact 18673 | -2/Quarantine | X0-1V1 added 0b10 threat records associated with you (minor) 18691 | -2/Quarantine | Discovered exit to Access (range 5) 18692 | -2/Quarantine | X0-1V1 announced a LAN party 18701 | -2/Quarantine | Found Alien Artifact 18705 | -2/Quarantine | Found Alien Artifact 18720 | -2/Quarantine | X0-1V1 vaporized surrounding terrain (radius 18) 18724 | -2/Quarantine | Cryocooling Duct disabled 18726 | -2/Quarantine | First assault squad dispatched 18739 | -2/Quarantine | Ambient heat levels rising (+20) 18739 | -2/Quarantine | Non-combat units ordered to evacuate 18748 | -2/Quarantine | Spotted Fortress 18756 | -2/Quarantine | X0-1V1 sent you to a vault 18757 | -2/Quarantine | Found Prototype Launcher 18757 | -2/Quarantine | Identified Ragnarok Missile Launcher 18777 | -2/Quarantine | X0-1V1 added 0b10 threat records associated with you (minor) 18810 | -2/Quarantine | Discovered new exit (range 7) 18810 | -2/Quarantine | Discovered new exit (range 6) 18812 | -2/Quarantine | Entered Protoforge 18845 | -2/Protoforge | Discovered exit to Access (range 13) 18845 | -2/Protoforge | Spotted Hotshot 18850 | -2/Protoforge | Identified Dimensional Node Initializer 18850 | -2/Protoforge | Initialized slip node 18856 | -2/Protoforge | Spotted Hotshot 18856 | -2/Protoforge | Spotted Hotshot 18857 | -2/Protoforge | Spotted Hotshot 18857 | -2/Protoforge | Spotted Hotshot 18857 | -2/Protoforge | Spotted Hotshot 18857 | -2/Protoforge | Spotted Hotshot 18857 | -2/Protoforge | Spotted Hotshot 18876 | -2/Protoforge | Superfortress began startup sequence 18890 | -2/Protoforge | Spotted Hotshot 18891 | -2/Protoforge | Spotted Hotshot 18891 | -2/Protoforge | Spotted Hotshot 18903 | -2/Protoforge | Spotted Hotshot 18915 | -2/Protoforge | X0-1V1 added 0b10 threat records associated with you (minor) 18983 | -2/Protoforge | Spotted Decapitator 18983 | -2/Protoforge | Spotted Decapitator 18983 | -2/Protoforge | Spotted Decapitator 18983 | -2/Protoforge | Spotted V925-e 18983 | -2/Protoforge | Spotted V424-o 18983 | -2/Protoforge | X0-1V1 sent you into danger 18998 | -2/Protoforge | Destroyed Decapitator 19000 | -2/Protoforge | Destroyed Decapitator 19030 | -2/Protoforge | Identified Transdimensional Reconstructor 19031 | -2/Protoforge | Found Prototype Device 19032 | -2/Protoforge | Identified Crosscalibrator 19040 | -2/Protoforge | Spotted Decapitator 19040 | -2/Protoforge | Spotted Decapitator 19040 | -2/Protoforge | Spotted Decapitator 19040 | -2/Protoforge | Spotted Decapitator 19049 | -2/Protoforge | Destroyed Decapitator 19052 | -2/Protoforge | Destroyed Decapitator 19054 | -2/Protoforge | Destroyed Decapitator 19058 | -2/Protoforge | Destroyed Decapitator 19062 | -2/Protoforge | First assault squad dispatched 19114 | -2/Protoforge | System corruption reached 10% 19144 | -2/Protoforge | X0-1V1 sent allied Lightning (x2) 19270 | -2/Protoforge | Forge Plexus network access discovered 19281 | -2/Protoforge | Destroyed 18 combat bots 19292 | -2/Protoforge | Found Cep. Phase Shift Module 19325 | -2/Protoforge | Spotted V497-o 19325 | -2/Protoforge | Spotted V994-i 19326 | -2/Protoforge | Spotted V636-l 19326 | -2/Protoforge | Spotted V769-x 19327 | -2/Protoforge | Found Cep. Network Penetrator 19376 | -2/Protoforge | Spotted Hotshot 19376 | -2/Protoforge | Spotted Hotshot 19376 | -2/Protoforge | Spotted Hotshot 19376 | -2/Protoforge | Spotted Hotshot 19377 | -2/Protoforge | Spotted V305-a 19393 | -2/Protoforge | Destroyed Hotshot 19403 | -2/Protoforge | Allies destroyed Hotshot 19404 | -2/Protoforge | Destroyed Hotshot 19414 | -2/Protoforge | Destroyed V305-a 19423 | -2/Protoforge | Destroyed Hotshot 19436 | -2/Protoforge | X0-1V1 mutated your Weapon slot to Propulsion slot 19457 | -2/Protoforge | Spotted Decapitator 19477 | -2/Protoforge | Destroyed Decapitator 19504 | -2/Protoforge | P-80 Master assimilated allied Lightning 19505 | -2/Protoforge | Spotted Lightning 19508 | -2/Protoforge | Destroyed Lightning 19534 | -2/Protoforge | Found Cep. Antigrav Storage Unit 19536 | -2/Protoforge | Spotted V175-c 19543 | -2/Protoforge | Found Cep. NT7 Matterbank 19577 | -2/Protoforge | X0-1V1 sent you to a vault 19618 | -2/Protoforge | Spotted AP7-3 19622 | -2/Protoforge | Spotted AP7-3 19630 | -2/Protoforge | Destroyed AP7-3 19637 | -2/Protoforge | System corruption reached 30% 19647 | -2/Protoforge | Spotted Overlord 19652 | -2/Protoforge | Destroyed Overlord 19665 | -2/Protoforge | Destroyed AP7-3 19670 | -2/Protoforge | Found Prototype Device 19671 | -2/Protoforge | Found Prototype Device 19681 | -2/Protoforge | Found Prototype Energy Gun 19693 | -2/Protoforge | Found Exp. Remote Shield 19707 | -2/Protoforge | Core integrity restored by X0-1V1 (+298) 19777 | -2/Protoforge | Weapon slot count temporarily expanded by X0-1V1 (+2) 19799 | -2/Protoforge | Spotted Decapitator 19799 | -2/Protoforge | Spotted Decapitator 19799 | -2/Protoforge | Spotted Decapitator 19799 | -2/Protoforge | Spotted Decapitator 19800 | -2/Protoforge | Identified Exp. Transmission Jammer 19801 | -2/Protoforge | Destroyed Decapitator 19810 | -2/Protoforge | Destroyed Decapitator 19816 | -2/Protoforge | Identified Imp. Potential Cannon 19825 | -2/Protoforge | Identified Hyp. Multirail 19833 | -2/Protoforge | Spotted Immortal 19837 | -2/Protoforge | Destroyed Immortal 19867 | -2/Protoforge | Identified Exp. Weapon Cycler 19933 | -2/Protoforge | Spotted V946-l 19933 | -2/Protoforge | Spotted V376-a 20007 | -2/Protoforge | Destroyed 9 combat bots 20056 | -2/Protoforge | Spotted V949-k 20133 | -2/Protoforge | X0-1V1 activates XOMVISION 20200 | -2/Protoforge | Scanned by Researcher 20218 | -2/Protoforge | Destroyed AP7-3 20218 | -2/Protoforge | Spotted AP7-3 20239 | -2/Protoforge | Destroyed AP7-3 20266 | -2/Protoforge | Found Prototype Device 20266 | -2/Protoforge | Identified Exp. ECM Suite 20269 | -2/Protoforge | Found Exp. Targeting Computer 20282 | -2/Protoforge | Found Faulty Cep. Core Analysis Suite 20284 | -2/Protoforge | Found Faulty Cep. Core Analysis Suite 20287 | -2/Protoforge | Found Cep. Thermoelectric Network 20289 | -2/Protoforge | Found Cep. Thermoelectric Network 20293 | -2/Protoforge | Found Cep. Impact Drone Bay 20295 | -2/Protoforge | Found Cep. Cloak Mesh 20299 | -2/Protoforge | Found Faulty Cep. Cloak Mesh 20486 | -2/Protoforge | Destroyed 8 combat bots 20556 | -2/Protoforge | Destroyed 10 combat bots 20786 | -2/Protoforge | Additional patrols dispatched to research labs 20806 | -2/Protoforge | Found Transdimensional Reconstructor 20862 | -2/Protoforge | Core integrity restored by X0-1V1 (+312) 20946 | -2/Protoforge | Destroyed V946-l 20953 | -2/Protoforge | Destroyed V949-k 20965 | -2/Protoforge | Destroyed V376-a 20976 | -2/Protoforge | Found Exp. Core Analyzer 20986 | -2/Protoforge | Lost 5 allies 21013 | -2/Protoforge | Spotted V876-x 21022 | -2/Protoforge | Destroyed V876-x 21181 | -2/Protoforge | Found Cep. Impact Drone Bay 21302 | -2/Protoforge | Destroyed 9 combat bots 21354 | -2/Protoforge | Found Cep. Plasma Driver 21455 | -2/Protoforge | X0-1V1 sent hostile H-77 Assassin (x2) 21456 | -2/Protoforge | Identified Hpw. Transdimensional Reconstructor 21456 | -2/Protoforge | Warped through subspace to slip node 21476 | -2/Protoforge | Spotted Hotshot 21476 | -2/Protoforge | Entered Access 21476 | -1/Access | Evolved 2 slots: Utility x1, Weapon x1 21525 | -1/Access | Identified exit to Surface 21820 | -1/Access | Garrison activated, responded to threat 21868 | -1/Access | X0-1V1 activates XOMVISION 21887 | -1/Access | X0-1V1 downgraded hostiles (x1) 21940 | -1/Access | Identified exit to Command 21976 | -1/Access | First assault squad dispatched 22007 | -1/Access | X0-1V1 sent you to a vault 22067 | -1/Access | High security lockdown imminent 22145 | -1/Access | Entered Command 22378 | -1/Command | High security lockdown imminent 22379 | -1/Command | Disengaged cave seal 22401 | -1/Command | Welcomed Warlord to Command 22419 | -1/Command | Spotted B-99 Colossus 22426 | -1/Command | Destroyed B-99 Colossus 22444 | -1/Command | X0-1V1 activates XOMVISION 22445 | -1/Command | Found Prototype Ballistic Gun 22447 | -1/Command | Found Prototype Ballistic Gun 22458 | -1/Command | High security lockdown engaged 22477 | -1/Command | Spotted Alpha 7 22477 | -1/Command | Spotted Alpha 7 22478 | -1/Command | Spotted Striker 22478 | -1/Command | Spotted Striker 22478 | -1/Command | Spotted Executioner 22480 | -1/Command | Spotted Executioner 22482 | -1/Command | Spotted Executioner 22495 | -1/Command | Spotted B-99 Colossus 22501 | -1/Command | Warlord destroyed during the assault 22504 | -1/Command | Spotted Executioner 22505 | -1/Command | Destroyed Executioner 22509 | -1/Command | Destroyed Striker 22510 | -1/Command | Destroyed Executioner 22513 | -1/Command | Destroyed Executioner 22532 | -1/Command | Lost 3 allies 22538 | -1/Command | Spotted M Guard 22539 | -1/Command | Spotted M Guard 22539 | -1/Command | Spotted Combat Programmer 22587 | -1/Command | Met MAIN.C 22594 | -1/Command | 0b10 Conduit disabled 22609 | -1/Command | Destroyed MAIN.C Shell 22611 | -1/Command | MAIN.C activated Command garrisons 22623 | -1/Command | Destroyed MAIN.C 22630 | -1/Command | Identified Subatomic Replicator 22630 | -1/Command | Identified Multirail (x2) 22630 | -1/Command | Discovered exit to Surface (range 34) 22630 | -1/Command | Discovered exit to Surface (range 96) 22630 | -1/Command | Extracted map data and part IDs from MAIN.C's data core 22721 | -1/Command | Found Exp. System Purifier 22736 | -1/Command | Found Exp. Armor Integrity Analyzer 22738 | -1/Command | Found Exp. Force Field 22742 | -1/Command | All MAIN.C guards destroyed 22773 | -1/Command | X0-1V1 mutated your Propulsion slot to Weapon slot 22886 | -1/Command | Identified exit to Access_0 22886 | -1/Command | X0-1V1 revealed exit location to -1/Access_0 23065 | -1/Command | X0-1V1 sent you to a vault 23367 | -1/Command | Found Exp. Powered Armor 23489 | -1/Command | Found Gamma Bomb Array 23618 | -1/Command | Found Exp. Targeting Computer 23687 | -1/Command | Warped through subspace to slip node 23691 | -1/Command | Entered Access_0 23693 | -1/Access_0 | Met Architect 23695 | -1/Access_0 | Destroyed A8 23698 | -1/Access_0 | Architect warped through subspace 23715 | -1/Access_0 | X0-1V1 revealed exit location to -0/Surface 23741 | -1/Access_0 | Architect warped through subspace 23775 | -1/Access_0 | Destroyed Architect 23776 | -1/Access_0 | Architect triggered a singularity event 23777 | -1/Access_0 | Warped through subspace to slip node 23781 | *** | Escaped singularity! Last Messages --------------- 23763_ Penetrated by Quantum Shear. 23766_ X0-1V1 uses you as a vessel of destruction. 23766_ Architect knocked back. 23767_ Ranged accuracy returns to normal. 23768_ Destroyed Alien Energy Gun. 23770_ Penetrated by Quantum Shear. 23773_ Quantum Shear penetrates Wall. 23773_ Destroyed Cld. Linear Gravjet. 23775_ Architect: "If I can't win, no one wins!" 23775_ Architect destroyed. 23776_ A0_COM: Initiating irreversible singularity event. Goodbye. 23777_ A0_COM: 10. 23777_ Warped through subspace, drawn to slip node. 23778_ A0_COM: 9. 23779_ A0_COM: 8. 23780_ A0_COM: 7. 23781_ A0_COM: 6. Map ----- +----------------------------------------------------+ | | | | | | | | | | | | | | | | | | | | | | | | | | | | | | | | | ?????????????????????????????????????????????????? | | ?????????????????????????????????????????????????? | | ?????????????????????????????????????????????????? | | ?????????????????????????????????????????????????? | | ?????????????????????????????????????????????????? | | ?????????????????????????????????????????????????? | | ????????????????????????###??????????????????????? | | ???????????????????????## ##?????????????????????? | | ???????????????????????# #?????????????????????? | | ???????????????????????# @ #?????????????????????? | | ??????????????????????## #?????????????????????? | | ??????????????????????# #?????????????????????? | | ??????????????????????# ##?????????????????????? | | ??????????????????????## #?????????????????????? | | ??????????????????????# #?????????????????????? | | ??????????????????????# ##?????????????????????? | | ??????????????????????# < #?????????????????????? | | ??????????????????????# ##?????????????????????? | | ??????????????????????## #??????????????????????? | | ???????????????????????####??????????????????????? | | ?????????????????????????????????????????????????? | | ?????????????????????????????????????????????????? | | ?????????????????????????????????????????????????? | | ?????????????????????????????????????????????????? | | ?????????????????????????????????????????????????? | | ?????????????????????????????????????????????????? | | ?????????????????????????????????????????????????? | | ?????????????????????????????????????????????????? | | ?????????????????????????????????????????????????? | | ?????????????????????????????????????????????????? | | ?????????????????????????????????????????????????? | | ?????????????????????????????????????????????????? | | ?????????????????????????????????????????????????? | | ?????????????????????????????????????????????????? | +----------------------------------------------------+ Best States ------------- Heat Dissipation 166 Energy Generation 175 Energy Capacity 11468 Matter Stores 1000 Matter Capacity 1000 Sight Range 27 Terrain Scan Density 10 Jamming Range 14 Cloak Strength 9 Base Temperature (-) 200 Armor Coverage 225 Resistance: TH 50 Resistance: EX 75 Weapon Cycling 30 Evasion (%) 67 Targeting Accuracy 12 Core Analysis 11 Armor Integrity Analysis 40 Recoil Reduction 7 Offensive Hacking 50 Defensive Hacking 10 Item Schematics ----------------- Combat Drone Bay | -6/Data Miner | Free Lgt. Regenerative Plating | -6/Data Miner | Free Cld. Nuclear Pulse Thruster | -6/Data Miner | Free Imp. Matter Compressor | -6/Data Miner | Free Hvy. Gatling Laser | -6/Data Miner | Free Impulse Thruster | -6/Data Miner | Free Adv. Transmission Jammer | -6/Data Miner | Free Hyp. Mass Driver | -6/Data Miner | Free Hyp. Gauss Cannon | -6/Data Miner | Free Hvy. Antimatter Reactor | -3/Testing | Archive Adv. Energy Well | -3/Testing | Archive Centrium Heavy Armor Plating | -2/Protoforge | Archive Enh. Gamma Bomb Array | -2/Protoforge | Archive Exp. Reaction Control System | -2/Protoforge | Archive Imp. Q-thruster | -2/Protoforge | Archive Com. Mass Driver | -2/Protoforge | Archive Exp. Sensor Array | -2/Protoforge | Archive Spectral Analyzer | -2/Protoforge | Archive Robot Schematics ------------------ B-48 Gladiator | -6/Data Miner | Free E-15 Imp | -6/Data Miner | Free P-60 Hacker | -6/Data Miner | Free A-27 Freighter | -2/Protoforge | Archive G-73 Enforcer | -2/Protoforge | Archive Fabricated ------------ Nothing Repaired ---------- Nothing Studied --------- None Alien Tech Used ----------------- Dimensional Node Initializer High-powered Transdimensional Reconstructor Transdimensional Reconstructor Achievements -------------- None Challenges ------------ None Game ------ Seed HypervelocityTowerAmplifier Manual? 0 Play Time 03:30:58 Cumulative 1652.3 hours Start 2026.07.31 @ 10:14:08 End 2026.07.31 @ 13:47:35 Sessions 1 Manual Loads 0 Difficulty Rogue Special Mode None Game No. 1026 Rogue 1013 Adventurer 13 Explorer 0 Win Type 6 Total 421 Types 206/33/97/16/5/5/21/13/11/14 Lore% 100 Gallery% 88 Achievement% 100 Wizard Run 0 Options --------- Layout 2 ASCII 0 Keyboard 0 Movement Arrows Keybinds 0 Fullscreen 1 Font 32/SmallcapsGlow Map View 50x44 Zoom Use 0% Tactical HUD 1 Map Filters NONE Filters NONE Steam 1 RUN: 7c10d010-d18b-43af-b606-17c161dfee3a